rowid,district,candidate,affiliation,expenditure_amount,expenditure_date,recipient,city,state,zip,expenditure_type,explanation
177,Bd. Ed. District 01,"Hayman, Alan",Libertarian,,,,,,,,
315,Bd. Ed. District 03,"Rankin, Joyce",Republican,964.0,7/16/20 0:00,Sda Technologies Llc,,CO,,Fundraising Expenses,Website And Social Media
320,Bd. Ed. District 03,"Rankin, Joyce",Republican,86.67,8/23/20 0:00,Vistaprint,,CO,,Advertising,Car Magnets
434,Bd. Ed. District 07,"Pallozzi, Nancy",Republican,98.41,7/13/20 0:00,House Of Flags,Lakewood,CO,,Office Equipment & Supplies,
435,Bd. Ed. District 07,"Pallozzi, Nancy",Republican,166.89,7/18/20 0:00,Safeway Grocers,Lakewood,CO,,Fundraising Expenses,
436,Bd. Ed. District 07,"Pallozzi, Nancy",Republican,23.64,7/21/20 0:00,Office Max,Lakewood,CO,,Office Equipment & Supplies,
437,Bd. Ed. District 07,"Pallozzi, Nancy",Republican,262.78,7/21/20 0:00,Century Link,,CO,,Telephone,
438,Bd. Ed. District 07,"Pallozzi, Nancy",Republican,108.68,8/20/20 0:00,Century Link,,CO,,Telephone,Telephone Bill
441,Bd. Ed. District 07,"Pallozzi, Nancy",Republican,71.29,8/31/20 0:00,,,,,Bank Fees,Misc. Fees For First Bank Checking Acct. Fees And Paypal
447,Bd. Ed. District 07,"Pallozzi, Nancy",Republican,3969.33,11/20/20 0:00,,,,,Other,Repayment Of Loan From Candidate
455,CU Regent  District 02,"Rennison, Callie",Democratic,17.78,9/30/19 0:00,,,,,Fundraising Expenses,
456,CU Regent  District 02,"Rennison, Callie",Democratic,-17.78,9/30/19 0:00,,,,,Fundraising Expenses,Offset Due To Update Of Filed Item
612,CU Regent District 02,"Gross, David",Democratic,12.0,8/27/19 0:00,,,,,Bank Fees,
613,CU Regent District 02,"Gross, David",Democratic,18.95,8/27/19 0:00,,,,,Office Equipment & Supplies,
635,CU Regent District 02,"Gross, David",Democratic,4.58,1/24/20 0:00,,,,,Miscellaneous,1099 Software
677,CU Regent District 02,"Gross, David",Democratic,9.87,5/13/20 0:00,,,,,Miscellaneous,Credit Card Processing Fee
703,CU Regent District 02,"Gross, David",Democratic,4.74,6/14/20 0:00,,,,,Miscellaneous,Credit Card Processing Fee
714,CU Regent District 02,"Gross, David",Democratic,3.96,6/21/20 0:00,,,,,Miscellaneous,Credit Card Processing Fee
718,CU Regent District 02,"Gross, David",Democratic,3.95,6/24/20 0:00,,,,,Miscellaneous,Credit Card Processing Fee
730,CU Regent District 02,"Gross, David",Democratic,2.97,6/30/20 0:00,,,,,Miscellaneous,Credit Card Processing Fee
781,CU Regent District 02,"Harber, Aaron",Democratic,170.4,4/29/20 0:00,,,,,Bank Fees,Credit Card Processing Fees - Act Blue
799,CU Regent District 02,"Harber, Aaron",Democratic,59.0,6/23/20 0:00,,,,,Bank Fees,Wire Fees
801,CU Regent District 02,"Harber, Aaron",Democratic,154.62,6/24/20 0:00,,,,,Bank Fees,Actblue Processing Charges
803,CU Regent District 02,"Harber, Aaron",Democratic,9.9,6/30/20 0:00,,,,,Bank Fees,
807,CU Regent District 02,"Harber, Aaron",Democratic,9.9,8/31/20 0:00,,,,,Bank Fees,
808,CU Regent District 02,"Harber, Aaron",Democratic,4.95,9/30/20 0:00,,,,,Bank Fees,
809,CU Regent District 02,"Harber, Aaron",Democratic,820.5,11/21/19 0:00,,,,,Advertising,Actblue Fees For Credit Card Processing Of Online Donations
810,CU Regent District 02,"Harber, Aaron",Democratic,6.93,11/30/20 0:00,,,,,Bank Fees,
812,CU Regent District 02,"Vernaza, Christian",Libertarian,,,,,,,,
822,CU Regent District 06,"Spiegel, Ilana",Democratic,5.4,7/3/19 0:00,,,,,"Food, Beverages and Meals",
848,CU Regent District 06,"Spiegel, Ilana",Democratic,4.0,5/12/20 0:00,,,,,Bank Fees,
860,CU Regent District 06,"Spiegel, Ilana",Democratic,4.0,7/14/20 0:00,,,,,Bank Fees,Bank Fee
875,CU Regent District 06,"Spiegel, Ilana",Democratic,4.0,9/11/20 0:00,,,,,Bank Fees,
895,CU Regent District 06,"Spiegel, Ilana",Democratic,4.0,10/14/20 0:00,,,,,Bank Fees,First Bank Card Fee
900,CU Regent District 06,"Spiegel, Ilana",Democratic,8.5,10/26/20 0:00,,,,,Office Equipment & Supplies,
906,CU Regent District 06,"Spiegel, Ilana",Democratic,4.0,11/12/20 0:00,,,,,Bank Fees,
1058,CU Regent District 06,"Rahn, Priscilla",Republican,4.18,1/3/20 0:00,,,,,Other,7214 ∑ Office Supplies
1172,CU Regent District 06,"Rahn, Priscilla",Republican,9.1,11/13/19 0:00,,,,,Other,7214 ∑ Office Supplies
180,Bd. Ed. District 03,"Simpson, Mayling",Democratic,25.79,4/5/20 0:00,Actblue,Somerville,MA,02144-0031,Fundraising Expenses,
181,Bd. Ed. District 03,"Simpson, Mayling",Democratic,3.95,4/8/20 0:00,Actblue,Somerville,MA,02144-0031,Fundraising Expenses,
182,Bd. Ed. District 03,"Simpson, Mayling",Democratic,3.95,4/12/20 0:00,Actblue,Somerville,MA,02144-0031,Fundraising Expenses,
183,Bd. Ed. District 03,"Simpson, Mayling",Democratic,3.96,4/26/20 0:00,Actblue,Somerville,MA,02144-0031,Fundraising Expenses,
185,Bd. Ed. District 03,"Simpson, Mayling",Democratic,37.53,4/29/20 0:00,Actblue,Somerville,MA,02144-0031,Fundraising Expenses,
186,Bd. Ed. District 03,"Simpson, Mayling",Democratic,5.93,5/3/20 0:00,Actblue,Somerville,MA,02144-0031,Fundraising Expenses,
187,Bd. Ed. District 03,"Simpson, Mayling",Democratic,5.93,5/13/20 0:00,Actblue,Somerville,MA,02144-0031,Fundraising Expenses,
188,Bd. Ed. District 03,"Simpson, Mayling",Democratic,4.95,5/27/20 0:00,Actblue,Somerville,MA,02144-0031,Fundraising Expenses,
189,Bd. Ed. District 03,"Simpson, Mayling",Democratic,-4.95,5/27/20 0:00,Actblue,Somerville,MA,02144-0031,Fundraising Expenses,Offset Due To Update Of Filed Item
190,Bd. Ed. District 03,"Simpson, Mayling",Democratic,4.95,5/27/20 0:00,Actblue,Somerville,MA,02144-0031,Fundraising Expenses,
191,Bd. Ed. District 03,"Simpson, Mayling",Democratic,3.95,5/31/20 0:00,Actblue,Somerville,MA,02144-0031,Fundraising Expenses,
192,Bd. Ed. District 03,"Simpson, Mayling",Democratic,1.98,6/1/20 0:00,Actblue,Somerville,MA,02144-0031,Fundraising Expenses,
194,Bd. Ed. District 03,"Simpson, Mayling",Democratic,20.74,6/9/20 0:00,Actblue,Somerville,MA,02144-0031,Fundraising Expenses,
198,Bd. Ed. District 03,"Simpson, Mayling",Democratic,9.88,6/29/20 0:00,Actblue,Somerville,MA,02144-0031,Fundraising Expenses,
199,Bd. Ed. District 03,"Simpson, Mayling",Democratic,-9.88,6/29/20 0:00,Actblue,Somerville,MA,02144-0031,Fundraising Expenses,Offset Due To Update Of Filed Item
200,Bd. Ed. District 03,"Simpson, Mayling",Democratic,9.88,6/29/20 0:00,Actblue,Somerville,MA,02144-0031,Fundraising Expenses,
202,Bd. Ed. District 03,"Simpson, Mayling",Democratic,9.88,6/30/20 0:00,Actblue,Somerville,MA,02144-0031,Fundraising Expenses,
204,Bd. Ed. District 03,"Simpson, Mayling",Democratic,5.93,7/5/20 0:00,Actblue,Somerville,MA,02144-0031,Fundraising Expenses,
205,Bd. Ed. District 03,"Simpson, Mayling",Democratic,7.9,7/12/20 0:00,Actblue,Somerville,MA,02144-0031,Fundraising Expenses,
206,Bd. Ed. District 03,"Simpson, Mayling",Democratic,-7.9,7/12/20 0:00,Actblue,Somerville,MA,02144-0031,Fundraising Expenses,Offset Due To Update Of Filed Item
207,Bd. Ed. District 03,"Simpson, Mayling",Democratic,7.9,7/12/20 0:00,Actblue,Somerville,MA,02144-0031,Fundraising Expenses,
208,Bd. Ed. District 03,"Simpson, Mayling",Democratic,5.93,7/13/20 0:00,Actblue,Somerville,MA,02144-0031,Fundraising Expenses,
209,Bd. Ed. District 03,"Simpson, Mayling",Democratic,40.95,7/19/20 0:00,Actblue,Somerville,MA,02144-0031,Fundraising Expenses,
211,Bd. Ed. District 03,"Simpson, Mayling",Democratic,16.79,7/28/20 0:00,Actblue,Somerville,MA,02144-0031,Fundraising Expenses,
213,Bd. Ed. District 03,"Simpson, Mayling",Democratic,13.83,8/2/20 0:00,Actblue,Somerville,MA,02144-0031,Fundraising Expenses,
215,Bd. Ed. District 03,"Simpson, Mayling",Democratic,110.67,8/9/20 0:00,Actblue,Somerville,MA,02144-0031,Fundraising Expenses,
216,Bd. Ed. District 03,"Simpson, Mayling",Democratic,85.97,8/16/20 0:00,Actblue,Somerville,MA,02144-0031,Fundraising Expenses,
217,Bd. Ed. District 03,"Simpson, Mayling",Democratic,7.9,8/23/20 0:00,Actblue,Somerville,MA,02144-0031,Fundraising Expenses,
220,Bd. Ed. District 03,"Simpson, Mayling",Democratic,5.93,8/30/20 0:00,Actblue,Somerville,MA,02144-0031,Fundraising Expenses,
222,Bd. Ed. District 03,"Simpson, Mayling",Democratic,1.98,9/6/20 0:00,Actblue,Somerville,MA,02144-0031,Fundraising Expenses,
224,Bd. Ed. District 03,"Simpson, Mayling",Democratic,28.64,9/13/20 0:00,Actblue,Somerville,MA,02144-0031,Fundraising Expenses,
227,Bd. Ed. District 03,"Simpson, Mayling",Democratic,5.93,9/16/20 0:00,Actblue,Somerville,MA,02144-0031,Fundraising Expenses,
231,Bd. Ed. District 03,"Simpson, Mayling",Democratic,3.95,9/20/20 0:00,Actblue,Somerville,MA,02144-0031,Fundraising Expenses,
235,Bd. Ed. District 03,"Simpson, Mayling",Democratic,27.49,9/27/20 0:00,Actblue,Somerville,MA,02144-0031,Fundraising Expenses,
259,Bd. Ed. District 03,"Simpson, Mayling",Democratic,12.26,10/18/20 0:00,Actblue,Somerville,MA,02144-0031,Fundraising Expenses,
264,Bd. Ed. District 03,"Simpson, Mayling",Democratic,4.95,10/25/20 0:00,Actblue,Somerville,MA,02144-0031,Fundraising Expenses,
267,Bd. Ed. District 03,"Simpson, Mayling",Democratic,-4.95,10/25/20 0:00,Actblue,Somerville,MA,02144-0031,Fundraising Expenses,Offset Due To Update Of Filed Item
268,Bd. Ed. District 03,"Simpson, Mayling",Democratic,13.57,10/25/20 0:00,Actblue,Somerville,MA,02144-0031,Fundraising Expenses,Adjustment To Correct Error And  Amounts Not Previously Reported
281,Bd. Ed. District 03,"Simpson, Mayling",Democratic,0.79,11/1/20 0:00,Actblue,Somerville,MA,02144-0031,Fundraising Expenses,
71,Bd. Ed. District 01,"Morganstern, Donna",Democratic,3.95,1/5/20 0:00,Actblue,Somerville,MA,02144-3132,Fundraising Expenses,Actblue Fee Deducted From Disbursement
73,Bd. Ed. District 01,"Morganstern, Donna",Democratic,1.98,1/12/20 0:00,Actblue,Somerville,MA,02144-3132,Fundraising Expenses,Actblue Fee Deducted From Disbursement Check.
77,Bd. Ed. District 01,"Morganstern, Donna",Democratic,22.4,1/19/20 0:00,Actblue,Somerville,MA,02144-3132,Fundraising Expenses,Actblue Fee Deducted From Disbursement.
84,Bd. Ed. District 01,"Morganstern, Donna",Democratic,3.96,1/26/20 0:00,Actblue,Somerville,MA,02144-3132,Fundraising Expenses,Actblue Fee Deducted From Disbursement.
90,Bd. Ed. District 01,"Morganstern, Donna",Democratic,1.98,2/9/20 0:00,Actblue,Somerville,MA,02144-3132,Fundraising Expenses,Actblue Fee Deducted From Disbursement.
94,Bd. Ed. District 01,"Morganstern, Donna",Democratic,1.98,2/21/20 0:00,Actblue,Somerville,MA,02144-3132,Fundraising Expenses,Actblue Fee Deducted From Disbursement Check
95,Bd. Ed. District 01,"Morganstern, Donna",Democratic,1.19,2/21/20 0:00,Actblue,Somerville,MA,02144-3132,Fundraising Expenses,Actblue Fee Deducted From Disbursement Check.
117,Bd. Ed. District 01,"Morganstern, Donna",Democratic,1.19,5/3/20 0:00,Actblue,Somerville,MA,02144-3132,Fundraising Expenses,Actblue Fee Withheld From Disbursement Check 400018293
120,Bd. Ed. District 01,"Morganstern, Donna",Democratic,1.19,5/10/20 0:00,Actblue,Somerville,MA,02144-3132,Fundraising Expenses,Actblue Fee Withheld From Disbursement Check #400022312
131,Bd. Ed. District 01,"Morganstern, Donna",Democratic,3.95,6/14/20 0:00,Actblue,Somerville,MA,02144-3132,Fundraising Expenses,Actblue Fee Deducted From Disbursement
134,Bd. Ed. District 01,"Morganstern, Donna",Democratic,5.14,6/21/20 0:00,Actblue,Somerville,MA,02144-3132,Fundraising Expenses,Actblue Fee Deducted From Disbursement Check
140,Bd. Ed. District 01,"Morganstern, Donna",Democratic,15.8,6/28/20 0:00,Actblue,Somerville,MA,02144-3132,Fundraising Expenses,Actblue Fee Deducted From Disbursement Check
158,Bd. Ed. District 01,"Morganstern, Donna",Democratic,13.83,12/15/19 0:00,Actblue,Somerville,MA,02144-3132,Fundraising Expenses,Actblue Fee Deducted From Disbursement.
164,Bd. Ed. District 01,"Morganstern, Donna",Democratic,1.98,12/22/19 0:00,Actblue,Somerville,MA,02144-3132,Fundraising Expenses,Actblue Fee Deducted From Disbursement
165,Bd. Ed. District 01,"Morganstern, Donna",Democratic,8.89,12/29/19 0:00,Actblue,Somerville,MA,02144-3132,Fundraising Expenses,Actblue Fee Deducted From Disbursement.
167,Bd. Ed. District 01,"Morganstern, Donna",Democratic,2.18,12/31/19 0:00,Actblue,Somerville,MA,02144-3132,Fundraising Expenses,Actblue Fee Deducted From Disbursement.
196,Bd. Ed. District 03,"Simpson, Mayling",Democratic,190.0,6/19/20 0:00,Global Internet Ventures,Jersey City,NJ,07306-3018,Other,Domain Name Registrations
197,Bd. Ed. District 03,"Simpson, Mayling",Democratic,-190.0,6/19/20 0:00,Global Internet Ventures,Jersey City,NJ,07306-3018,Other,Offset Due To Deletion Of Filed Item - Domain Name Registrations
365,Bd. Ed. District 07,"Esser, Karla",Democratic,27.93,4/20/20 0:00,"Squarespace, Inc",New York City,NY,10014,Consultant & Professional Services,Second User License For Website
392,Bd. Ed. District 07,"Esser, Karla",Democratic,20.0,8/24/20 0:00,"Squarespace, Inc",New York City,NY,10014,Advertising,Renewal Of Online Domain Name
393,Bd. Ed. District 07,"Esser, Karla",Democratic,144.0,8/24/20 0:00,"Squarespace, Inc",New York City,NY,10014,Advertising,Renewal Of 2 Google G-Suite Users
595,CU Regent  District 02,"Rennison, Callie",Democratic,1524.08,11/18/20 0:00,Community Labor Administrative Services,Brooklyn,NY,11201,Other,Texting Services
896,CU Regent District 06,"Spiegel, Ilana",Democratic,874.01,10/16/20 0:00,Community Labor Administrative Services,Brooklyn,NY,11201,Employee Services,
289,Bd. Ed. District 03,"Rankin, Joyce",Republican,110.99,5/17/19 0:00,Amsterdam Printing,Amsterdam,NY,12010,Advertising,Pens For Campaign
473,CU Regent  District 02,"Rennison, Callie",Democratic,2250.0,3/3/20 0:00,Complete Digital Llc,Washington,DC,20003,Consultant & Professional Services,
513,CU Regent  District 02,"Rennison, Callie",Democratic,17500.0,6/1/20 0:00,Complete Digital Llc,Washington,DC,20003,Advertising,
514,CU Regent  District 02,"Rennison, Callie",Democratic,-17500.0,6/1/20 0:00,Complete Digital Llc,Washington,DC,20003,Advertising,Offset Due To Update Of Filed Item
515,CU Regent  District 02,"Rennison, Callie",Democratic,17500.0,6/1/20 0:00,Complete Digital Llc,Washington,DC,20003,Advertising,Digital Advertising For Callie Rennison For Cu Regent
530,CU Regent  District 02,"Rennison, Callie",Democratic,12650.0,6/15/20 0:00,Complete Digital Llc,Washington,DC,20003,Advertising,
531,CU Regent  District 02,"Rennison, Callie",Democratic,-12650.0,6/15/20 0:00,Complete Digital Llc,Washington,DC,20003,Advertising,Offset Due To Update Of Filed Item
532,CU Regent  District 02,"Rennison, Callie",Democratic,12650.0,6/15/20 0:00,Complete Digital Llc,Washington,DC,20003,Advertising,Digital Ads For Callie Rennison For Cu Regent
536,CU Regent  District 02,"Rennison, Callie",Democratic,7000.0,6/22/20 0:00,Complete Digital Llc,Washington,DC,20003,Advertising,
537,CU Regent  District 02,"Rennison, Callie",Democratic,1850.0,6/22/20 0:00,Complete Digital Llc,Washington,DC,20003,Advertising,
538,CU Regent  District 02,"Rennison, Callie",Democratic,-7000.0,6/22/20 0:00,Complete Digital Llc,Washington,DC,20003,Advertising,Offset Due To Update Of Filed Item
539,CU Regent  District 02,"Rennison, Callie",Democratic,7000.0,6/22/20 0:00,Complete Digital Llc,Washington,DC,20003,Advertising,Digital Advertising For Callie Rennison For Cu Regent
540,CU Regent  District 02,"Rennison, Callie",Democratic,-1850.0,6/22/20 0:00,Complete Digital Llc,Washington,DC,20003,Advertising,Offset Due To Update Of Filed Item
541,CU Regent  District 02,"Rennison, Callie",Democratic,1850.0,6/22/20 0:00,Complete Digital Llc,Washington,DC,20003,Advertising,Digitial Advertising For Callie Rennison For Cu Regent
643,CU Regent District 02,"Gross, David",Democratic,525.0,2/9/20 0:00,"Ngp Van, Inc.",Washington,DC,20005,Office Equipment & Supplies,Database
693,CU Regent District 02,"Gross, David",Democratic,900.0,6/4/20 0:00,"Ngp Van, Inc.",Washington,DC,20005,Office Equipment & Supplies,Database
742,CU Regent District 02,"Gross, David",Democratic,-400.0,8/26/20 0:00,"Ngp Van, Inc.",Washington,DC,20005,Returned Expenditure,Canceled Subscription
763,CU Regent District 02,"Gross, David",Democratic,270.0,12/12/19 0:00,"Ngp Van, Inc.",Washington,DC,20005,Consultant & Professional Services,Database
820,CU Regent District 06,"Spiegel, Ilana",Democratic,30.0,6/26/19 0:00,Ngp Van,Washington,DC,20005,Other,Voter Files
826,CU Regent District 06,"Spiegel, Ilana",Democratic,30.0,8/2/19 0:00,Ngp Van,Washington,DC,20005,Consultant & Professional Services,Ngp Van
829,CU Regent District 06,"Spiegel, Ilana",Democratic,30.0,9/3/19 0:00,Ngp Van,Washington,DC,20005,Advertising,
843,CU Regent District 06,"Spiegel, Ilana",Democratic,8.4,4/3/20 0:00,Ngp Van,Washington,DC,20005,Consultant & Professional Services,
874,CU Regent District 06,"Spiegel, Ilana",Democratic,840.0,9/4/20 0:00,Ngp Van,Washington,DC,20005,Advertising,
881,CU Regent District 06,"Spiegel, Ilana",Democratic,210.0,9/26/20 0:00,Ngp Van,Washington,DC,20005,Advertising,
884,CU Regent District 06,"Spiegel, Ilana",Democratic,30.0,10/2/19 0:00,Ngp Van,Washington,DC,20005,Advertising,
887,CU Regent District 06,"Spiegel, Ilana",Democratic,84.0,10/7/20 0:00,Ngp Van,Washington,DC,20005,Advertising,
904,CU Regent District 06,"Spiegel, Ilana",Democratic,30.0,11/4/19 0:00,Ngp Van,Washington,DC,20005,Advertising,
912,CU Regent District 06,"Spiegel, Ilana",Democratic,30.0,12/2/19 0:00,Ngp Van,Washington,DC,20005,Advertising,
675,CU Regent District 02,"Gross, David",Democratic,25200.0,5/11/20 0:00,Gbao,Washington,DC,20006,Consultant & Professional Services,Research
503,CU Regent  District 02,"Rennison, Callie",Democratic,5000.0,5/11/20 0:00,Hilltop Public Solutions,Washington,DC,20007,Consultant & Professional Services,
558,CU Regent  District 02,"Rennison, Callie",Democratic,5000.0,8/19/20 0:00,Hilltop Public Solutions,Washington,DC,20007,Consultant & Professional Services,
461,CU Regent  District 02,"Rennison, Callie",Democratic,30.0,1/16/20 0:00,Action Network,Washington,DC,20036,Advertising,
469,CU Regent  District 02,"Rennison, Callie",Democratic,10.0,2/16/20 0:00,Action Network,Washington,DC,20036,Fundraising Expenses,
482,CU Regent  District 02,"Rennison, Callie",Democratic,30.0,3/16/20 0:00,Action Network,Washington,DC,20036,Advertising,
485,CU Regent  District 02,"Rennison, Callie",Democratic,10.0,3/16/20 0:00,Action Network,Washington,DC,20036,Fundraising Expenses,
496,CU Regent  District 02,"Rennison, Callie",Democratic,10.0,4/16/20 0:00,Action Network,Washington,DC,20036,Fundraising Expenses,
504,CU Regent  District 02,"Rennison, Callie",Democratic,25.0,5/16/20 0:00,Action Network,Washington,DC,20036,Fundraising Expenses,Action Network Paid For By Candidate'S Personal Acct
582,CU Regent  District 02,"Rennison, Callie",Democratic,30.0,10/16/19 0:00,Action Network,Washington,DC,20036,Fundraising Expenses,Action Network
593,CU Regent  District 02,"Rennison, Callie",Democratic,30.0,11/16/19 0:00,Action Network,Washington,DC,20036,Fundraising Expenses,Monthly Action Network Fee
604,CU Regent  District 02,"Rennison, Callie",Democratic,30.0,12/16/19 0:00,Action Network,Washington,DC,20036,Fundraising Expenses,
605,CU Regent  District 02,"Rennison, Callie",Democratic,-30.0,12/16/19 0:00,Action Network,Washington,DC,20036,Fundraising Expenses,Offset Due To Update Of Filed Item
1,Bd. Ed. District 01,"Escarcega, Lisa",Democratic,88.3,9/30/19 0:00,Actblue,Somerville,MA,2144,Bank Fees,Accumulated Fees For Actblue Donation Management Through End Of September
17,Bd. Ed. District 01,"Escarcega, Lisa",Democratic,139.9,4/30/20 0:00,Actblue,Somerville,MA,2144,Bank Fees,Accumulated Actblue Electronic Pay System Fees From January 1St Through End Of April
20,Bd. Ed. District 01,"Escarcega, Lisa",Democratic,32.6,5/13/20 0:00,Actblue,Somerville,MA,2144,Bank Fees,Accrued Fees From Actblue Donation System During Reporting Period
22,Bd. Ed. District 01,"Escarcega, Lisa",Democratic,32.6,5/27/20 0:00,Actblue,Somerville,MA,2144,Bank Fees,Accumulated Fees From Actblue Donation System
27,Bd. Ed. District 01,"Escarcega, Lisa",Democratic,19.58,6/10/20 0:00,Actblue,Somerville,MA,2144,Bank Fees,Accumulated Actblue Fees For Reporting Period
33,Bd. Ed. District 01,"Escarcega, Lisa",Democratic,57.51,6/24/20 0:00,Actblue,Somerville,MA,2144,Bank Fees,Accumulted Actblue Fees Through Reporting Period
45,Bd. Ed. District 01,"Escarcega, Lisa",Democratic,5.14,7/27/20 0:00,Actblue,Somerville,MA,2144,Bank Fees,Accumulated Actblue Fees Through Reporting Period
50,Bd. Ed. District 01,"Escarcega, Lisa",Democratic,7.33,9/2/20 0:00,Actblue,Somerville,MA,2144,Bank Fees,Accumulated Actblue Fees
52,Bd. Ed. District 01,"Escarcega, Lisa",Democratic,15.8,9/11/20 0:00,Actblue,Somerville,MA,2144,Bank Fees,Actblue Fee
54,Bd. Ed. District 01,"Escarcega, Lisa",Democratic,0.99,9/16/20 0:00,Actblue,Somerville,MA,2144,Bank Fees,Actblue Fees For Reporting Period
56,Bd. Ed. District 01,"Escarcega, Lisa",Democratic,0.4,9/30/20 0:00,Actblue,Somerville,MA,2144,Bank Fees,Actblue Fees
58,Bd. Ed. District 01,"Escarcega, Lisa",Democratic,3.37,10/15/20 0:00,Actblue,Somerville,MA,2144,Bank Fees,Actblue Fees For Reporting Period
67,Bd. Ed. District 01,"Escarcega, Lisa",Democratic,1.78,11/30/20 0:00,Actblue,Somerville,MA,2144,Bank Fees,Actblue Fees For Reporting Period
69,Bd. Ed. District 01,"Escarcega, Lisa",Democratic,71.13,12/31/19 0:00,Actblue,Somerville,MA,2144,Bank Fees,Accumulated Fees For Actblue Donation Management Through End Of December
102,Bd. Ed. District 01,"Morganstern, Donna",Democratic,3.95,3/8/20 0:00,Actblue,Somerville,MA,2144,Fundraising Expenses,Fee Deducted From Disbursement Check
240,Bd. Ed. District 03,"Simpson, Mayling",Democratic,6.34,9/30/20 0:00,Act Blue,Summerville,MA,2144,Fundraising Expenses,
242,Bd. Ed. District 03,"Simpson, Mayling",Democratic,2.38,10/4/20 0:00,Act Blue,Summerville,MA,2144,Fundraising Expenses,
245,Bd. Ed. District 03,"Simpson, Mayling",Democratic,3.95,10/11/20 0:00,Act Blue,Summerville,MA,2144,Fundraising Expenses,
246,Bd. Ed. District 03,"Simpson, Mayling",Democratic,5.93,10/14/20 0:00,Act Blue,Summerville,MA,2144,Fundraising Expenses,
343,Bd. Ed. District 07,"Esser, Karla",Democratic,255.46,9/30/19 0:00,Actblue,Somerville,MA,2144,Bank Fees,Actblue Fees For September
351,Bd. Ed. District 07,"Esser, Karla",Democratic,37.18,1/31/20 0:00,Actblue,Somerville,MA,2144,Bank Fees,Actblue Fees For January 2020
357,Bd. Ed. District 07,"Esser, Karla",Democratic,72.33,2/29/20 0:00,Actblue,Somerville,MA,2144,Bank Fees,Actblue Fees For February 2020
360,Bd. Ed. District 07,"Esser, Karla",Democratic,44.47,3/31/20 0:00,Actblue,Somerville,MA,2144,Bank Fees,Actblue Fees For March 2020
362,Bd. Ed. District 07,"Esser, Karla",Democratic,42.0,4/7/20 0:00,"Ngp Van, Inc",Somerville,MA,2144,Other,"Democratic Voter Database
Predictive Dialer 300 Minutes"
363,Bd. Ed. District 07,"Esser, Karla",Democratic,16.8,4/9/20 0:00,"Ngp Van, Inc",Somerville,MA,2144,Other,"Predictive Dialer 120 Minutes
Democratic Voter Database"
366,Bd. Ed. District 07,"Esser, Karla",Democratic,54.85,4/29/20 0:00,Actblue,Somerville,MA,2144,Bank Fees,"Actblue Fees For April 1- April 29, 2020"
367,Bd. Ed. District 07,"Esser, Karla",Democratic,-54.85,4/29/20 0:00,Actblue,Somerville,MA,2144,Bank Fees,"Offset Due To Update Of Filed Item - Actblue Fees For April 1- April 29, 2020"
368,Bd. Ed. District 07,"Esser, Karla",Democratic,54.85,4/29/20 0:00,Actblue,Somerville,MA,2144,Bank Fees,"Actblue Fees For April 1- April 29, 2020"
373,Bd. Ed. District 07,"Esser, Karla",Democratic,60.08,5/13/20 0:00,Actblue,Somerville,MA,2144,Bank Fees,Actblue Fees For Reporting Period
374,Bd. Ed. District 07,"Esser, Karla",Democratic,33.59,5/27/20 0:00,Actblue,Somerville,MA,2144,Bank Fees,Actblue Fees For Reporting Period
378,Bd. Ed. District 07,"Esser, Karla",Democratic,28.86,6/10/20 0:00,Actblue,Somerville,MA,2144,Bank Fees,"Actblue Fees For Reporting Period Of May 28 - June 10, 2020"
379,Bd. Ed. District 07,"Esser, Karla",Democratic,20.77,6/24/20 0:00,Actblue,Somerville,MA,2144,Bank Fees,Actblue Fees For Reporting Period
383,Bd. Ed. District 07,"Esser, Karla",Democratic,102.98,7/27/20 0:00,Actblue,Somerville,MA,2144,Bank Fees,Actblue Fees For Reporting Period
395,Bd. Ed. District 07,"Esser, Karla",Democratic,85.36,9/2/20 0:00,Actblue,Somerville,MA,2144,Bank Fees,Actblue Fees For Reporting Period
399,Bd. Ed. District 07,"Esser, Karla",Democratic,32.6,9/16/20 0:00,Actblue,Somerville,MA,2144,Bank Fees,Actblue Fees For Reporting Period
403,Bd. Ed. District 07,"Esser, Karla",Democratic,34.25,9/30/20 0:00,Actblue,Somerville,MA,2144,Bank Fees,Actblue Fees For The Reporting Period
415,Bd. Ed. District 07,"Esser, Karla",Democratic,39.16,10/14/20 0:00,Actblue,Somerville,MA,2144,Bank Fees,Actblue Fees For Reporting Period
421,Bd. Ed. District 07,"Esser, Karla",Democratic,8.9,10/28/20 0:00,Actblue,Somerville,MA,2144,Bank Fees,Actblue Fees For Reporting Period
423,Bd. Ed. District 07,"Esser, Karla",Democratic,73.35,10/31/19 0:00,Actblue,Somerville,MA,2144,Bank Fees,Actblue Fees For October 2019
424,Bd. Ed. District 07,"Esser, Karla",Democratic,1.58,11/1/20 0:00,Actblue,Somerville,MA,2144,Bank Fees,Actblue Fees For Reporting Period
431,Bd. Ed. District 07,"Esser, Karla",Democratic,46.25,11/30/19 0:00,Actblue,Somerville,MA,2144,Bank Fees,Actblue Fees For November 2019
433,Bd. Ed. District 07,"Esser, Karla",Democratic,42.93,12/31/19 0:00,Actblue,Somerville,MA,2144,Bank Fees,Actblue Fees For December 2019
449,CU Regent  District 02,"Rennison, Callie",Democratic,113.21,9/15/19 0:00,Actblue,Somerville,CO,2144,Fundraising Expenses,
452,CU Regent  District 02,"Rennison, Callie",Democratic,60.08,9/22/19 0:00,Actblue,Somerville,CO,2144,Fundraising Expenses,
453,CU Regent  District 02,"Rennison, Callie",Democratic,114.03,9/29/19 0:00,Actblue,Somerville,CO,2144,Fundraising Expenses,
457,CU Regent  District 02,"Rennison, Callie",Democratic,17.78,9/30/19 0:00,Actblue,Somerville,CO,2144,Advertising,
458,CU Regent  District 02,"Rennison, Callie",Democratic,1.98,1/5/20 0:00,Actblue,Somerville,CO,2144,Fundraising Expenses,
460,CU Regent  District 02,"Rennison, Callie",Democratic,7.9,1/12/20 0:00,Actblue,Somerville,CO,2144,Fundraising Expenses,
462,CU Regent  District 02,"Rennison, Callie",Democratic,4.94,1/19/20 0:00,Actblue,Somerville,CO,2144,Fundraising Expenses,
463,CU Regent  District 02,"Rennison, Callie",Democratic,1.98,1/26/20 0:00,Actblue,Somerville,CO,2144,Fundraising Expenses,
466,CU Regent  District 02,"Rennison, Callie",Democratic,39.11,2/2/20 0:00,Actblue,Somerville,CO,2144,Fundraising Expenses,
467,CU Regent  District 02,"Rennison, Callie",Democratic,47.23,2/9/20 0:00,Actblue,Somerville,CO,2144,Fundraising Expenses,
468,CU Regent  District 02,"Rennison, Callie",Democratic,12.36,2/16/20 0:00,Actblue,Somerville,CO,2144,Fundraising Expenses,
471,CU Regent  District 02,"Rennison, Callie",Democratic,47.43,2/23/20 0:00,Actblue,Somerville,CO,2144,Fundraising Expenses,
472,CU Regent  District 02,"Rennison, Callie",Democratic,31.22,3/1/20 0:00,Actblue,Somerville,CO,2144,Fundraising Expenses,
476,CU Regent  District 02,"Rennison, Callie",Democratic,18.19,3/8/20 0:00,Actblue,Somerville,CO,2144,Fundraising Expenses,
481,CU Regent  District 02,"Rennison, Callie",Democratic,44.46,3/15/20 0:00,Actblue,Somerville,CO,2144,Fundraising Expenses,
490,CU Regent  District 02,"Rennison, Callie",Democratic,1.98,3/22/20 0:00,Actblue,Somerville,CO,2144,Fundraising Expenses,
491,CU Regent  District 02,"Rennison, Callie",Democratic,14.82,3/29/20 0:00,Actblue,Somerville,CO,2144,Fundraising Expenses,
492,CU Regent  District 02,"Rennison, Callie",Democratic,4.94,3/31/20 0:00,Actblue,Somerville,CO,2144,Fundraising Expenses,
494,CU Regent  District 02,"Rennison, Callie",Democratic,40.89,4/5/20 0:00,Actblue,Somerville,CO,2144,Fundraising Expenses,
495,CU Regent  District 02,"Rennison, Callie",Democratic,2.97,4/12/20 0:00,Actblue,Somerville,CO,2144,Fundraising Expenses,
497,CU Regent  District 02,"Rennison, Callie",Democratic,52.36,4/19/20 0:00,Actblue,Somerville,CO,2144,Fundraising Expenses,
498,CU Regent  District 02,"Rennison, Callie",Democratic,104.71,4/26/20 0:00,Actblue,Somerville,CO,2144,Fundraising Expenses,
499,CU Regent  District 02,"Rennison, Callie",Democratic,40.72,4/29/20 0:00,Actblue,Somerville,CO,2144,Fundraising Expenses,
501,CU Regent  District 02,"Rennison, Callie",Democratic,5.74,5/3/20 0:00,Actblue,Somerville,CO,2144,Fundraising Expenses,
502,CU Regent  District 02,"Rennison, Callie",Democratic,34.4,5/10/20 0:00,Actblue,Somerville,CO,2144,Fundraising Expenses,
505,CU Regent  District 02,"Rennison, Callie",Democratic,21.74,5/17/20 0:00,Actblue,Somerville,CO,2144,Fundraising Expenses,
506,CU Regent  District 02,"Rennison, Callie",Democratic,137.15,5/24/20 0:00,Actblue,Somerville,CO,2144,Fundraising Expenses,
508,CU Regent  District 02,"Rennison, Callie",Democratic,109.15,5/27/20 0:00,Act Blue,Somerville,MA,2144,Fundraising Expenses,
510,CU Regent  District 02,"Rennison, Callie",Democratic,36.55,5/31/20 0:00,Act Blue,Somerville,MA,2144,Fundraising Expenses,
511,CU Regent  District 02,"Rennison, Callie",Democratic,19.97,5/31/20 0:00,Act Blue,Somerville,MA,2144,Fundraising Expenses,
517,CU Regent  District 02,"Rennison, Callie",Democratic,19.97,6/3/20 0:00,Actblue,Somerville,CO,2144,Fundraising Expenses,
521,CU Regent  District 02,"Rennison, Callie",Democratic,40.31,6/7/20 0:00,Actblue,Somerville,CO,2144,Fundraising Expenses,
525,CU Regent  District 02,"Rennison, Callie",Democratic,123.97,6/10/20 0:00,Actblue,Somerville,CO,2144,Fundraising Expenses,
529,CU Regent  District 02,"Rennison, Callie",Democratic,12.67,6/14/20 0:00,Actblue,Somerville,CO,2144,Fundraising Expenses,
533,CU Regent  District 02,"Rennison, Callie",Democratic,85.67,6/17/20 0:00,Actblue,Somerville,CO,2144,Fundraising Expenses,
535,CU Regent  District 02,"Rennison, Callie",Democratic,43.31,6/21/20 0:00,Actblue,Somerville,CO,2144,Fundraising Expenses,
542,CU Regent  District 02,"Rennison, Callie",Democratic,102.92,6/24/20 0:00,Actblue,Somerville,CO,2144,Fundraising Expenses,
543,CU Regent  District 02,"Rennison, Callie",Democratic,65.63,6/28/20 0:00,Actblue,Somerville,CO,2144,Fundraising Expenses,
544,CU Regent  District 02,"Rennison, Callie",Democratic,18.39,6/30/20 0:00,Actblue,Somerville,CO,2144,Fundraising Expenses,
545,CU Regent  District 02,"Rennison, Callie",Democratic,9.88,7/1/20 0:00,Actblue,Somerville,CO,2144,Fundraising Expenses,
547,CU Regent  District 02,"Rennison, Callie",Democratic,0.4,7/5/20 0:00,Actblue,Somerville,CO,2144,Fundraising Expenses,
548,CU Regent  District 02,"Rennison, Callie",Democratic,3.96,7/15/20 0:00,Actblue,Somerville,CO,2144,Fundraising Expenses,
549,CU Regent  District 02,"Rennison, Callie",Democratic,20.15,7/19/20 0:00,Actblue,Somerville,CO,2144,Fundraising Expenses,
550,CU Regent  District 02,"Rennison, Callie",Democratic,5.34,7/22/20 0:00,Actblue,Somerville,CO,2144,Fundraising Expenses,
551,CU Regent  District 02,"Rennison, Callie",Democratic,4.94,7/26/20 0:00,Actblue,Somerville,CO,2144,Fundraising Expenses,
552,CU Regent  District 02,"Rennison, Callie",Democratic,22.74,7/29/20 0:00,Actblue,Somerville,CO,2144,Fundraising Expenses,
553,CU Regent  District 02,"Rennison, Callie",Democratic,8.89,8/2/20 0:00,Actblue,Somerville,CO,2144,Fundraising Expenses,
555,CU Regent  District 02,"Rennison, Callie",Democratic,20.74,8/9/20 0:00,Actblue,Somerville,CO,2144,Fundraising Expenses,
556,CU Regent  District 02,"Rennison, Callie",Democratic,14.23,8/12/20 0:00,Actblue,Somerville,CO,2144,Fundraising Expenses,
557,CU Regent  District 02,"Rennison, Callie",Democratic,7.9,8/16/20 0:00,Actblue,Somerville,CO,2144,Fundraising Expenses,
559,CU Regent  District 02,"Rennison, Callie",Democratic,14.23,8/19/20 0:00,Actblue,Somerville,CO,2144,Fundraising Expenses,
561,CU Regent  District 02,"Rennison, Callie",Democratic,5.35,8/23/20 0:00,Actblue,Somerville,CO,2144,Fundraising Expenses,
562,CU Regent  District 02,"Rennison, Callie",Democratic,13.25,8/26/20 0:00,Actblue,Somerville,CO,2144,Fundraising Expenses,
563,CU Regent  District 02,"Rennison, Callie",Democratic,10.08,8/30/20 0:00,Actblue,Somerville,CO,2144,Fundraising Expenses,
565,CU Regent  District 02,"Rennison, Callie",Democratic,5.34,9/2/20 0:00,Actblue,Somerville,CO,2144,Fundraising Expenses,
566,CU Regent  District 02,"Rennison, Callie",Democratic,2.97,9/6/20 0:00,Actblue,Somerville,CO,2144,Fundraising Expenses,
567,CU Regent  District 02,"Rennison, Callie",Democratic,16.4,9/13/20 0:00,Actblue,Somerville,CO,2144,Fundraising Expenses,
568,CU Regent  District 02,"Rennison, Callie",Democratic,17.79,9/16/20 0:00,Actblue,Somerville,CO,2144,Fundraising Expenses,
569,CU Regent  District 02,"Rennison, Callie",Democratic,0.99,9/20/20 0:00,Actblue,Somerville,CO,2144,Fundraising Expenses,
570,CU Regent  District 02,"Rennison, Callie",Democratic,27.07,9/23/20 0:00,Actblue,Somerville,CO,2144,Fundraising Expenses,
571,CU Regent  District 02,"Rennison, Callie",Democratic,6.53,9/30/20 0:00,Actblue,Somerville,CO,2144,Fundraising Expenses,
574,CU Regent  District 02,"Rennison, Callie",Democratic,23.71,10/6/19 0:00,Actblue,Somerville,CO,2144,Fundraising Expenses,
576,CU Regent  District 02,"Rennison, Callie",Democratic,2.38,10/7/20 0:00,Actblue,Somerville,CO,2144,Fundraising Expenses,
578,CU Regent  District 02,"Rennison, Callie",Democratic,0.99,10/11/20 0:00,Actblue,Somerville,CO,2144,Fundraising Expenses,
579,CU Regent  District 02,"Rennison, Callie",Democratic,7.9,10/13/19 0:00,Actblue,Somerville,CO,2144,Fundraising Expenses,
581,CU Regent  District 02,"Rennison, Callie",Democratic,0.4,10/14/20 0:00,Actblue,Somerville,CO,2144,Fundraising Expenses,
584,CU Regent  District 02,"Rennison, Callie",Democratic,0.99,10/18/20 0:00,Actblue,Somerville,CO,2144,Fundraising Expenses,
586,CU Regent  District 02,"Rennison, Callie",Democratic,3.95,10/20/19 0:00,Actblue,Somerville,CO,2144,Fundraising Expenses,
587,CU Regent  District 02,"Rennison, Callie",Democratic,2.97,10/21/20 0:00,Actblue,Somerville,CO,2144,Fundraising Expenses,
588,CU Regent  District 02,"Rennison, Callie",Democratic,33.0,10/27/19 0:00,Actblue,Somerville,CO,2144,Fundraising Expenses,
590,CU Regent  District 02,"Rennison, Callie",Democratic,2.37,11/3/19 0:00,Actblue,Somerville,CO,2144,Fundraising Expenses,
592,CU Regent  District 02,"Rennison, Callie",Democratic,21.34,11/10/19 0:00,Actblue,Somerville,CO,2144,Fundraising Expenses,
594,CU Regent  District 02,"Rennison, Callie",Democratic,10.49,11/17/19 0:00,Actblue,Somerville,CO,2144,Fundraising Expenses,
597,CU Regent  District 02,"Rennison, Callie",Democratic,1.98,11/22/20 0:00,Actblue,Somerville,CO,2144,Fundraising Expenses,
598,CU Regent  District 02,"Rennison, Callie",Democratic,35.55,11/24/19 0:00,Actblue,Somerville,CO,2144,Fundraising Expenses,
600,CU Regent  District 02,"Rennison, Callie",Democratic,1.98,12/1/19 0:00,Actblue,Somerville,CO,2144,Fundraising Expenses,
601,CU Regent  District 02,"Rennison, Callie",Democratic,19.77,12/8/19 0:00,Actblue,Somerville,CO,2144,Fundraising Expenses,
603,CU Regent  District 02,"Rennison, Callie",Democratic,4.94,12/15/19 0:00,Actblue,Somerville,CO,2144,Fundraising Expenses,
606,CU Regent  District 02,"Rennison, Callie",Democratic,16.21,12/22/19 0:00,Actblue,Somerville,CO,2144,Fundraising Expenses,
607,CU Regent  District 02,"Rennison, Callie",Democratic,29.05,12/29/19 0:00,Actblue,Somerville,CO,2144,Fundraising Expenses,
608,CU Regent  District 02,"Rennison, Callie",Democratic,17.8,12/31/19 0:00,Actblue,Somerville,CO,2144,Fundraising Expenses,
609,CU Regent District 02,"Gross, David",Democratic,86.95,8/18/19 0:00,Actblue,Somerville,MA,2144,Fundraising Expenses,Credit Card Processing Fee
611,CU Regent District 02,"Gross, David",Democratic,362.43,8/25/19 0:00,Actblue,Somerville,MA,2144,Fundraising Expenses,Credit Card Processing Fee
615,CU Regent District 02,"Gross, David",Democratic,85.92,9/1/19 0:00,Actblue,Somerville,MA,2144,Fundraising Expenses,Credit Card Processing Fee
619,CU Regent District 02,"Gross, David",Democratic,76.05,9/8/19 0:00,Actblue,Somerville,MA,2144,Fundraising Expenses,Credit Card Processing Fee
622,CU Regent District 02,"Gross, David",Democratic,66.17,9/15/19 0:00,Actblue,Somerville,MA,2144,Fundraising Expenses,
623,CU Regent District 02,"Gross, David",Democratic,104.5,9/22/19 0:00,Actblue,Somerville,MA,2144,Fundraising Expenses,Credit Card Processing Fee
624,CU Regent District 02,"Gross, David",Democratic,113.19,9/29/19 0:00,Actblue,Somerville,MA,2144,Fundraising Expenses,
625,CU Regent District 02,"Gross, David",Democratic,46.42,9/30/19 0:00,Actblue,Somerville,MA,2144,Fundraising Expenses,
628,CU Regent District 02,"Gross, David",Democratic,48.21,1/6/20 0:00,Actblue,West Somerville,MA,2144,Fundraising Expenses,Credit Card Processing Fee
631,CU Regent District 02,"Gross, David",Democratic,66.22,1/12/20 0:00,Actblue,West Somerville,MA,2144,Fundraising Expenses,Credit Card Processing Fee
632,CU Regent District 02,"Gross, David",Democratic,73.12,1/19/20 0:00,Actblue,West Somerville,MA,2144,Fundraising Expenses,Credit Card Processing Fee
636,CU Regent District 02,"Gross, David",Democratic,38.34,1/26/20 0:00,Actblue,West Somerville,MA,2144,Fundraising Expenses,Credit Card Processing Fee
638,CU Regent District 02,"Gross, David",Democratic,16.8,2/2/20 0:00,Actblue,West Somerville,MA,2144,Fundraising Expenses,Credit Card Processing Fee
642,CU Regent District 02,"Gross, David",Democratic,13.84,2/9/20 0:00,Actblue,West Somerville,MA,2144,Fundraising Expenses,Credit Card Processing Fee
644,CU Regent District 02,"Gross, David",Democratic,17.78,2/16/20 0:00,Actblue,West Somerville,MA,2144,Fundraising Expenses,Credit Card Processing Fee
647,CU Regent District 02,"Gross, David",Democratic,19.75,2/23/20 0:00,Actblue,West Somerville,MA,2144,Fundraising Expenses,Credit Card Processing Fee
649,CU Regent District 02,"Gross, David",Democratic,3.95,3/1/20 0:00,Actblue,West Somerville,MA,2144,Fundraising Expenses,Credit Card Processing Fee
658,CU Regent District 02,"Gross, David",Democratic,25.68,3/15/20 0:00,Actblue,West Somerville,MA,2144,Fundraising Expenses,Credit Card Processing Fee
663,CU Regent District 02,"Gross, David",Democratic,0.99,3/29/20 0:00,Actblue,West Somerville,MA,2144,Fundraising Expenses,Credit Card Processing Fee
667,CU Regent District 02,"Gross, David",Democratic,5.93,4/26/20 0:00,Actblue,West Somerville,MA,2144,Fundraising Expenses,Credit Card Processing Fee
668,CU Regent District 02,"Gross, David",Democratic,88.91,4/29/20 0:00,Actblue,West Somerville,MA,2144,Fundraising Expenses,Credit Card Processing Fee
679,CU Regent District 02,"Gross, David",Democratic,28.47,5/24/20 0:00,Actblue,West Somerville,MA,2144,Fundraising Expenses,Credit Card Processing Fee
681,CU Regent District 02,"Gross, David",Democratic,7.9,5/27/20 0:00,Actblue,West Somerville,MA,2144,Fundraising Expenses,Credit Card Processing Fee
684,CU Regent District 02,"Gross, David",Democratic,25.69,5/31/20 0:00,Actblue,West Somerville,MA,2144,Fundraising Expenses,Credit Card Processing Fee
695,CU Regent District 02,"Gross, David",Democratic,4.95,6/7/20 0:00,Actblue,West Somerville,MA,2144,Fundraising Expenses,Credit Card Processing Fee
745,CU Regent District 02,"Gross, David",Democratic,33.59,10/6/19 0:00,Actblue,Somerville,MA,2144,Fundraising Expenses,Credit Card Processing Fees
747,CU Regent District 02,"Gross, David",Democratic,23.74,10/13/19 0:00,Actblue,Somerville,MA,2144,Fundraising Expenses,Credit Card Processing Fee
748,CU Regent District 02,"Gross, David",Democratic,9.88,10/15/19 0:00,Actblue,Somerville,MA,2144,Fundraising Expenses,Credit Card Processing Fee
750,CU Regent District 02,"Gross, David",Democratic,8.89,10/27/19 0:00,Actblue,Somerville,MA,2144,Fundraising Expenses,Credit Card Processing Fee
752,CU Regent District 02,"Gross, David",Democratic,2.97,11/3/19 0:00,Actblue,Somerville,MA,2144,Fundraising Expenses,Credit Card Processing Fee
753,CU Regent District 02,"Gross, David",Democratic,19.75,11/10/19 0:00,Actblue,Somerville,MA,2144,Fundraising Expenses,Credit Card Processing Fee
756,CU Regent District 02,"Gross, David",Democratic,28.05,11/17/19 0:00,Actblue,Somerville,MA,2144,Fundraising Expenses,Credit Card Processing Fee
757,CU Regent District 02,"Gross, David",Democratic,48.39,11/24/19 0:00,Actblue,Somerville,MA,2144,Fundraising Expenses,Credit Card Processing Fee
758,CU Regent District 02,"Gross, David",Democratic,15.81,12/1/19 0:00,Actblue,Somerville,MA,2144,Fundraising Expenses,Credit Card Processing Fee
762,CU Regent District 02,"Gross, David",Democratic,53.33,12/8/19 0:00,Actblue,Somerville,MA,2144,Fundraising Expenses,Credit Card Processing Fee
764,CU Regent District 02,"Gross, David",Democratic,19.96,12/15/19 0:00,Actblue,Somerville,MA,2144,Fundraising Expenses,Credit Card Processing Fee
766,CU Regent District 02,"Gross, David",Democratic,36.96,12/22/19 0:00,Actblue,Somerville,MA,2144,Fundraising Expenses,Credit Card Processing Fee
767,CU Regent District 02,"Gross, David",Democratic,53.95,12/29/19 0:00,Actblue,Somerville,MA,2144,Fundraising Expenses,Credit Card Processing Fee
768,CU Regent District 02,"Gross, David",Democratic,72.1,12/31/19 0:00,Actblue,Somerville,MA,2144,Fundraising Expenses,Credit Card Processing Fee
821,CU Regent District 06,"Spiegel, Ilana",Democratic,338.62,6/30/19 0:00,Act Blue,Somerville,MA,2144,Bank Fees,Credit Card Processing Fees
831,CU Regent District 06,"Spiegel, Ilana",Democratic,373.79,9/30/19 0:00,Act Blue,Somerville,MA,2144,Bank Fees,Act Blue Fees
845,CU Regent District 06,"Spiegel, Ilana",Democratic,420.14,4/29/20 0:00,Act Blue,Somerville,MA,2144,Bank Fees,
850,CU Regent District 06,"Spiegel, Ilana",Democratic,30.26,5/13/20 0:00,Act Blue,Somerville,MA,2144,Bank Fees,
852,CU Regent District 06,"Spiegel, Ilana",Democratic,17.02,5/28/20 0:00,Act Blue,Somerville,MA,2144,Bank Fees,
855,CU Regent District 06,"Spiegel, Ilana",Democratic,75.78,6/10/20 0:00,Act Blue,Somerville,MA,2144,Bank Fees,
858,CU Regent District 06,"Spiegel, Ilana",Democratic,62.44,6/25/20 0:00,Act Blue,Somerville,MA,2144,Bank Fees,
863,CU Regent District 06,"Spiegel, Ilana",Democratic,151.6,7/27/20 0:00,Act Blue,Somerville,MA,2144,Bank Fees,
877,CU Regent District 06,"Spiegel, Ilana",Democratic,188.47,9/16/20 0:00,Act Blue,Somerville,MA,2144,Bank Fees,Processing Fees
882,CU Regent District 06,"Spiegel, Ilana",Democratic,213.66,9/30/20 0:00,Act Blue,Somerville,MA,2144,Bank Fees,Cc Processing
894,CU Regent District 06,"Spiegel, Ilana",Democratic,128.81,10/14/20 0:00,Act Blue,Somerville,MA,2144,Bank Fees,Cc Processing
901,CU Regent District 06,"Spiegel, Ilana",Democratic,44.78,10/28/20 0:00,Act Blue,Somerville,MA,2144,Bank Fees,Credit Card Processing
911,CU Regent District 06,"Spiegel, Ilana",Democratic,48.32,11/26/20 0:00,Act Blue,Somerville,MA,2144,Bank Fees,
914,CU Regent District 06,"Spiegel, Ilana",Democratic,303.71,12/30/19 0:00,Act Blue,Somerville,MA,2144,Bank Fees,Cc Processing Fees
1199,CU Regent District 07,"Chavez, Nolbert",Democratic,500.0,3/11/20 0:00,Dominic Chavez Photography,Chelsea,MA,2150,Advertising,Photography Services
313,Bd. Ed. District 03,"Rankin, Joyce",Republican,300.92,7/10/20 0:00,Customink,Fairfax,VA,22031,Miscellaneous,Shirts And Hats
29,Bd. Ed. District 01,"Escarcega, Lisa",Democratic,204.97,6/12/20 0:00,Robodial.Org,Arlington,VA,22203,Advertising,Phone Calls/Messages On Behalf Of Campaign
174,Bd. Ed. District 01,"Wulff, Sydnnia",Republican,2.2,10/26/20 0:00,Winred.Com,Arlington,VI,22209,Bank Fees,Winred Fundraising Transaction Fee
1019,CU Regent District 06,"Murray, Richard",Republican,4.1,8/28/20 0:00,Winred,Arlington,VA,22219,Other,7820 ∑ Merchant Account Fees
1020,CU Regent District 06,"Murray, Richard",Republican,15.81,9/2/20 0:00,Winred,Arlington,VA,22219,Other,7820 ∑ Merchant Account Fees
1021,CU Regent District 06,"Murray, Richard",Republican,16.75,9/2/20 0:00,Winred,Arlington,VA,22219,Other,7820 ∑ Merchant Account Fees
1022,CU Regent District 06,"Murray, Richard",Republican,2.2,9/3/20 0:00,Winred,Arlington,VA,22219,Other,7820 ∑ Merchant Account Fees
1024,CU Regent District 06,"Murray, Richard",Republican,9.75,9/8/20 0:00,Winred,Arlington,VA,22219,Other,7820 ∑ Merchant Account Fees
1025,CU Regent District 06,"Murray, Richard",Republican,2.2,9/9/20 0:00,Winred,Arlington,VA,22219,Other,7820 ∑ Merchant Account Fees
1026,CU Regent District 06,"Murray, Richard",Republican,2.2,9/11/20 0:00,Winred,Arlington,VA,22219,Other,7820 ∑ Merchant Account Fees
1027,CU Regent District 06,"Murray, Richard",Republican,8.5,9/13/20 0:00,Winred,Arlington,VA,22219,Other,7820 ∑ Merchant Account Fees
1028,CU Regent District 06,"Murray, Richard",Republican,2.09,9/16/20 0:00,Winred,Arlington,VA,22219,Other,7820 ∑ Merchant Account Fees
1030,CU Regent District 06,"Murray, Richard",Republican,23.05,9/19/20 0:00,Winred,Arlington,VA,22219,Other,7820 ∑ Merchant Account Fees
1031,CU Regent District 06,"Murray, Richard",Republican,7.55,9/19/20 0:00,Winred,Arlington,VA,22219,Other,7820 ∑ Merchant Account Fees
1032,CU Regent District 06,"Murray, Richard",Republican,39.15,9/21/20 0:00,Winred,Arlington,VA,22219,Other,7820 ∑ Merchant Account Fees
1033,CU Regent District 06,"Murray, Richard",Republican,8.5,9/22/20 0:00,Winred,Arlington,VA,22219,Other,7820 ∑ Merchant Account Fees
1035,CU Regent District 06,"Murray, Richard",Republican,1.25,9/23/20 0:00,Winred,Arlington,VA,22219,Other,7820 ∑ Merchant Account Fees
1036,CU Regent District 06,"Murray, Richard",Republican,2.2,9/25/20 0:00,Winred,Arlington,VA,22219,Other,7820 ∑ Merchant Account Fees
1037,CU Regent District 06,"Murray, Richard",Republican,1.25,9/25/20 0:00,Winred,Arlington,VA,22219,Other,7820 ∑ Merchant Account Fees
1038,CU Regent District 06,"Murray, Richard",Republican,5.35,9/28/20 0:00,Winred,Arlington,VA,22219,Other,7820 ∑ Merchant Account Fees
1041,CU Regent District 06,"Murray, Richard",Republican,8.5,9/29/20 0:00,Winred,Arlington,VA,22219,Other,7820 ∑ Merchant Account Fees
1044,CU Regent District 06,"Murray, Richard",Republican,17.08,9/30/20 0:00,Winred,Arlington,VA,22219,Other,7820 ∑ Merchant Account Fees
1045,CU Regent District 06,"Murray, Richard",Republican,2.73,10/1/20 0:00,Winred,Arlington,VA,22219,Other,7820 ∑ Merchant Account Fees
1046,CU Regent District 06,"Murray, Richard",Republican,7.85,10/6/20 0:00,Winred,Arlington,VA,22219,Other,7820 ∑ Merchant Account Fees
1049,CU Regent District 06,"Murray, Richard",Republican,3.45,10/11/20 0:00,Winred,Arlington,VA,22219,Bank Fees,
1051,CU Regent District 06,"Murray, Richard",Republican,11.65,10/16/20 0:00,Winred,Arlington,VA,22219,Other,7820 ∑ Merchant Account Fees
1054,CU Regent District 06,"Murray, Richard",Republican,53.95,10/28/20 0:00,Winred,Arlington,VA,22219,Other,7820 ∑ Merchant Account Fees
620,CU Regent District 02,"Gross, David",Democratic,1675.0,9/11/19 0:00,Superior Blue Strategies,Alexandria,VA,22309,Office Equipment & Supplies,
630,CU Regent District 02,"Gross, David",Democratic,750.0,1/10/20 0:00,Superior Blue Strategies,Alexandria,VA,22309,Advertising,Walkpiece
648,CU Regent District 02,"Gross, David",Democratic,6340.0,2/27/20 0:00,Superior Blue Strategies,Alexandria,VA,22309,Advertising,Mailing
694,CU Regent District 02,"Gross, David",Democratic,31626.0,6/4/20 0:00,Superior Blue Strategies,Alexandria,VA,22309,Advertising,Mail
700,CU Regent District 02,"Gross, David",Democratic,84803.0,6/11/20 0:00,Superior Blue Strategies,Alexandria,VA,22309,Advertising,Mail
716,CU Regent District 02,"Gross, David",Democratic,22645.0,6/22/20 0:00,Superior Blue Strategies,Alexandria,VA,22309,Advertising,Mail
723,CU Regent District 02,"Gross, David",Democratic,1519.0,6/25/20 0:00,Superior Blue Strategies,Alexandria,VA,22309,Advertising,Mail
297,Bd. Ed. District 03,"Rankin, Joyce",Republican,78.1,9/9/19 0:00,Vista Print,Lexington,MA,2421,Fundraising Expenses,Car Magnet Sign
1078,CU Regent District 06,"Rahn, Priscilla",Republican,315.91,2/11/20 0:00,Vistaprint,Lexington,MA,2421,Other,6611 ∑ Letterhead & Envelopes
1079,CU Regent District 06,"Rahn, Priscilla",Republican,166.98,2/15/20 0:00,Vistaprint,Lexington,MA,2421,Other,6612 ∑ Business Cards
1136,CU Regent District 06,"Rahn, Priscilla",Republican,231.62,5/7/20 0:00,Vistaprint,Lexington,MA,2421,Other,6221 ∑ Printing
203,Bd. Ed. District 03,"Simpson, Mayling",Democratic,36.0,7/1/20 0:00,Constant Contact,Waltham,MA,2451,Advertising,
212,Bd. Ed. District 03,"Simpson, Mayling",Democratic,70.0,8/2/20 0:00,Constant Contact,Waltham,MA,2451,Advertising,Constant Contact Subscription
239,Bd. Ed. District 03,"Simpson, Mayling",Democratic,140.0,9/28/20 0:00,Constant Contact,Waltham,MA,2451,Advertising,Monthly Fee Not Previously Reported
276,Bd. Ed. District 03,"Simpson, Mayling",Democratic,70.0,10/29/20 0:00,Constant Contact,Waltham,MA,2451,Advertising,
851,CU Regent District 06,"Spiegel, Ilana",Democratic,29.99,5/14/20 0:00,Mailchimp,Atlanta,GA,30308,Advertising,
857,CU Regent District 06,"Spiegel, Ilana",Democratic,29.99,6/15/20 0:00,Mailchimp,Atlanta,GA,30308,Advertising,
861,CU Regent District 06,"Spiegel, Ilana",Democratic,29.99,7/15/20 0:00,Mailchimp,Atlanta,GA,30308,Advertising,
866,CU Regent District 06,"Spiegel, Ilana",Democratic,29.99,8/14/20 0:00,Mailchimp,Atlanta,GA,30308,Advertising,
876,CU Regent District 06,"Spiegel, Ilana",Democratic,29.99,9/14/20 0:00,Mailchimp,Atlanta,GA,30308,Advertising,
893,CU Regent District 06,"Spiegel, Ilana",Democratic,29.99,10/14/20 0:00,Mailchimp,Atlanta,GA,30308,Advertising,
908,CU Regent District 06,"Spiegel, Ilana",Democratic,30.99,11/16/20 0:00,Mailchimp,Atlanta,GA,30308,Advertising,
787,CU Regent District 02,"Harber, Aaron",Democratic,82.0,5/27/20 0:00,Alibaba,969 West Wen Yi Road,HA,311121,Office Equipment & Supplies,
439,Bd. Ed. District 07,"Pallozzi, Nancy",Republican,19.25,8/20/20 0:00,"Name Badges, Inc.",Cooper City,FL,33330,Office Equipment & Supplies,Name Badge
172,Bd. Ed. District 01,"Wulff, Sydnnia",Republican,932.09,10/8/20 0:00,Postcardmania,Clearwater,FL,33765,Other,"Purchase, Design And Printing Order Of 5K Doorhangers"
785,CU Regent District 02,"Harber, Aaron",Democratic,3049.0,5/15/20 0:00,Text Request,Chattanooga,TN,37408,Consultant & Professional Services,
805,CU Regent District 02,"Harber, Aaron",Democratic,2500.0,8/6/20 0:00,Text Request,Chattanooga,TN,37408,Advertising,Ongoing Text
707,CU Regent District 02,"Gross, David",Democratic,1095.6,6/15/20 0:00,Praire Mountain Media,Willoughby,OH,44096,Advertising,Newspaper Ad
296,Bd. Ed. District 03,"Rankin, Joyce",Republican,240.0,9/9/19 0:00,Hotcards,Cincinatti,OH,45237,Fundraising Expenses,Palm Cards
654,CU Regent District 02,"Gross, David",Democratic,300.0,3/9/20 0:00,Trees Cut Stars Design Studio,Milwaukee,WI,53207,Advertising,Facebook Ads
26,Bd. Ed. District 01,"Escarcega, Lisa",Democratic,42.14,6/1/20 0:00,Deluxe Financial Services,North Shoreview,MN,55126,Miscellaneous,Bank Checks
371,Bd. Ed. District 07,"Esser, Karla",Democratic,53.33,5/6/20 0:00,Target.Com,Minneapolis,MN,55403,Other,Microphone For Online Campaign Events
784,CU Regent District 02,"Harber, Aaron",Democratic,349.0,5/14/20 0:00,Active Campaign,Chicago,IL,60602,Consultant & Professional Services,
786,CU Regent District 02,"Harber, Aaron",Democratic,89.0,5/27/20 0:00,Active Campaign,Chicago,IL,60602,Miscellaneous,
790,CU Regent District 02,"Harber, Aaron",Democratic,599.0,6/1/20 0:00,Active Campaign,Chicago,IL,60602,Consultant & Professional Services,
915,CU Regent District 06,"Murray, Richard",Republican,14.2,1/22/20 0:00,Anedot,Baton Rouge,LA,70808,Other,7820 ∑ Merchant Account Fees
916,CU Regent District 06,"Murray, Richard",Republican,81.5,1/23/20 0:00,Anedot,Baton Rouge,LA,70808,Other,7820 ∑ Merchant Account Fees
917,CU Regent District 06,"Murray, Richard",Republican,48.9,1/24/20 0:00,Anedot,Baton Rouge,LA,70808,Other,7820 ∑ Merchant Account Fees
918,CU Regent District 06,"Murray, Richard",Republican,83.62,1/25/20 0:00,Anedot,Baton Rouge,LA,70808,Other,7820 ∑ Merchant Account Fees
919,CU Regent District 06,"Murray, Richard",Republican,27.43,1/26/20 0:00,Anedot,Baton Rouge,LA,70808,Other,7820 ∑ Merchant Account Fees
920,CU Regent District 06,"Murray, Richard",Republican,5.6,1/27/20 0:00,Anedot,Baton Rouge,LA,70808,Other,7820 ∑ Merchant Account Fees
921,CU Regent District 06,"Murray, Richard",Republican,23.23,1/28/20 0:00,Anedot,Baton Rouge,LA,70808,Other,7820 ∑ Merchant Account Fees
922,CU Regent District 06,"Murray, Richard",Republican,4.3,1/29/20 0:00,Anedot,Baton Rouge,LA,70808,Other,7820 ∑ Merchant Account Fees
923,CU Regent District 06,"Murray, Richard",Republican,4.3,1/31/20 0:00,Anedot,Baton Rouge,LA,70808,Other,7820 ∑ Merchant Account Fees
924,CU Regent District 06,"Murray, Richard",Republican,20.92,2/3/20 0:00,Anedot,Baton Rouge,LA,70808,Other,7820 ∑ Merchant Account Fees
925,CU Regent District 06,"Murray, Richard",Republican,2.31,2/4/20 0:00,Anedot,Baton Rouge,LA,70808,Other,7820 ∑ Merchant Account Fees
926,CU Regent District 06,"Murray, Richard",Republican,2.31,2/4/20 0:00,Anedot,Baton Rouge,LA,70808,Other,7820 ∑ Merchant Account Fees
927,CU Regent District 06,"Murray, Richard",Republican,1.3,2/4/20 0:00,Anedot,Baton Rouge,LA,70808,Other,7820 ∑ Merchant Account Fees
928,CU Regent District 06,"Murray, Richard",Republican,18.91,2/9/20 0:00,Anedot,Baton Rouge,LA,70808,Other,7820 ∑ Merchant Account Fees
929,CU Regent District 06,"Murray, Richard",Republican,55.42,2/10/20 0:00,Anedot,Baton Rouge,LA,70808,Other,7820 ∑ Merchant Account Fees
930,CU Regent District 06,"Murray, Richard",Republican,21.13,2/11/20 0:00,Anedot,Baton Rouge,LA,70808,Other,7820 ∑ Merchant Account Fees
931,CU Regent District 06,"Murray, Richard",Republican,4.3,2/12/20 0:00,Anedot,Baton Rouge,LA,70808,Other,7820 ∑ Merchant Account Fees
932,CU Regent District 06,"Murray, Richard",Republican,8.6,2/13/20 0:00,Anedot,Baton Rouge,LA,70808,Other,7820 ∑ Merchant Account Fees
933,CU Regent District 06,"Murray, Richard",Republican,20.6,2/14/20 0:00,Anedot,Baton Rouge,LA,70808,Other,7820 ∑ Merchant Account Fees
934,CU Regent District 06,"Murray, Richard",Republican,16.3,2/15/20 0:00,Anedot,Baton Rouge,LA,70808,Other,7820 ∑ Merchant Account Fees
935,CU Regent District 06,"Murray, Richard",Republican,25.22,2/17/20 0:00,Anedot,Baton Rouge,LA,70808,Other,7820 ∑ Merchant Account Fees
936,CU Regent District 06,"Murray, Richard",Republican,29.22,2/18/20 0:00,Anedot,Baton Rouge,LA,70808,Other,7820 ∑ Merchant Account Fees
937,CU Regent District 06,"Murray, Richard",Republican,1.3,2/20/20 0:00,Anedot,Baton Rouge,LA,70808,Other,7820 ∑ Merchant Account Fees
938,CU Regent District 06,"Murray, Richard",Republican,1.3,2/23/20 0:00,Anedot,Baton Rouge,LA,70808,Other,7820 ∑ Merchant Account Fees
939,CU Regent District 06,"Murray, Richard",Republican,43.44,2/28/20 0:00,Anedot,Baton Rouge,LA,70808,Other,7820 ∑ Merchant Account Fees
941,CU Regent District 06,"Murray, Richard",Republican,39.73,2/29/20 0:00,Anedot,Baton Rouge,LA,70808,Other,7820 ∑ Merchant Account Fees
942,CU Regent District 06,"Murray, Richard",Republican,2.31,3/1/20 0:00,Anedot,Baton Rouge,LA,70808,Other,7820 ∑ Merchant Account Fees
947,CU Regent District 06,"Murray, Richard",Republican,18.31,3/3/20 0:00,Anedot,Baton Rouge,LA,70808,Other,7820 ∑ Merchant Account Fees
948,CU Regent District 06,"Murray, Richard",Republican,8.3,3/4/20 0:00,Anedot,Baton Rouge,LA,70808,Other,7820 ∑ Merchant Account Fees
949,CU Regent District 06,"Murray, Richard",Republican,2.31,3/9/20 0:00,Anedot,Baton Rouge,LA,70808,Other,7820 ∑ Merchant Account Fees
950,CU Regent District 06,"Murray, Richard",Republican,1.3,3/10/20 0:00,Anedot,Baton Rouge,LA,70808,Other,7820 ∑ Merchant Account Fees
951,CU Regent District 06,"Murray, Richard",Republican,16.3,3/13/20 0:00,Anedot,Baton Rouge,LA,70808,Other,7820 ∑ Merchant Account Fees
952,CU Regent District 06,"Murray, Richard",Republican,4.3,3/17/20 0:00,Anedot,Baton Rouge,LA,70808,Other,7820 ∑ Merchant Account Fees
953,CU Regent District 06,"Murray, Richard",Republican,32.6,3/20/20 0:00,Anedot,Baton Rouge,LA,70808,Other,7820 ∑ Merchant Account Fees
954,CU Regent District 06,"Murray, Richard",Republican,4.3,4/4/20 0:00,Anedot,Baton Rouge,LA,70808,Other,7820 ∑ Merchant Account Fees
962,CU Regent District 06,"Murray, Richard",Republican,2.3,4/16/20 0:00,Anedot,Baton Rouge,LA,70808,Other,7820 ∑ Merchant Account Fees
965,CU Regent District 06,"Murray, Richard",Republican,2.7,4/26/20 0:00,Anedot,Baton Rouge,LA,70808,Other,7820 ∑ Merchant Account Fees
966,CU Regent District 06,"Murray, Richard",Republican,27.5,4/29/20 0:00,Anedot,Baton Rouge,LA,70808,Other,7820 ∑ Merchant Account Fees
967,CU Regent District 06,"Murray, Richard",Republican,16.3,4/30/20 0:00,Anedot,Baton Rouge,LA,70808,Other,7820 ∑ Merchant Account Fees
968,CU Regent District 06,"Murray, Richard",Republican,2.3,5/2/20 0:00,Anedot,Baton Rouge,LA,70808,Other,7820 ∑ Merchant Account Fees
969,CU Regent District 06,"Murray, Richard",Republican,2.3,5/4/20 0:00,Anedot,Baton Rouge,LA,70808,Other,7820 ∑ Merchant Account Fees
970,CU Regent District 06,"Murray, Richard",Republican,1.3,5/6/20 0:00,Anedot,Baton Rouge,LA,70808,Other,7820 ∑ Merchant Account Fees
972,CU Regent District 06,"Murray, Richard",Republican,10.9,5/7/20 0:00,Anedot,Baton Rouge,LA,70808,Other,7820 ∑ Merchant Account Fees
973,CU Regent District 06,"Murray, Richard",Republican,1.3,5/8/20 0:00,Anedot,Baton Rouge,LA,70808,Other,7820 ∑ Merchant Account Fees
974,CU Regent District 06,"Murray, Richard",Republican,11.9,5/11/20 0:00,Anedot,Baton Rouge,LA,70808,Other,7820 ∑ Merchant Account Fees
975,CU Regent District 06,"Murray, Richard",Republican,15.2,5/12/20 0:00,Anedot,Baton Rouge,LA,70808,Other,7820 ∑ Merchant Account Fees
976,CU Regent District 06,"Murray, Richard",Republican,32.8,5/13/20 0:00,Anedot,Baton Rouge,LA,70808,Other,7820 ∑ Merchant Account Fees
977,CU Regent District 06,"Murray, Richard",Republican,14.9,5/14/20 0:00,Anedot,Baton Rouge,LA,70808,Other,7820 ∑ Merchant Account Fees
978,CU Regent District 06,"Murray, Richard",Republican,4.3,5/16/20 0:00,Anedot,Baton Rouge,LA,70808,Other,7820 ∑ Merchant Account Fees
979,CU Regent District 06,"Murray, Richard",Republican,2.3,5/19/20 0:00,Anedot,Baton Rouge,LA,70808,Other,7820 ∑ Merchant Account Fees
980,CU Regent District 06,"Murray, Richard",Republican,1.3,5/20/20 0:00,Anedot,Baton Rouge,LA,70808,Other,7820 ∑ Merchant Account Fees
982,CU Regent District 06,"Murray, Richard",Republican,4.6,5/22/20 0:00,Anedot,Baton Rouge,LA,70808,Other,7820 ∑ Merchant Account Fees
983,CU Regent District 06,"Murray, Richard",Republican,6.9,5/23/20 0:00,Anedot,Baton Rouge,LA,70808,Other,7820 ∑ Merchant Account Fees
984,CU Regent District 06,"Murray, Richard",Republican,17.6,5/25/20 0:00,Anedot,Baton Rouge,LA,70808,Other,7820 ∑ Merchant Account Fees
986,CU Regent District 06,"Murray, Richard",Republican,12.6,5/26/20 0:00,Anedot,Baton Rouge,LA,70808,Other,7820 ∑ Merchant Account Fees
987,CU Regent District 06,"Murray, Richard",Republican,38.3,5/27/20 0:00,Anedot,Baton Rouge,LA,70808,Other,7820 ∑ Merchant Account Fees
988,CU Regent District 06,"Murray, Richard",Republican,4.9,5/28/20 0:00,Anedot,Baton Rouge,LA,70808,Other,7820 ∑ Merchant Account Fees
989,CU Regent District 06,"Murray, Richard",Republican,1.3,5/29/20 0:00,Anedot,Baton Rouge,LA,70808,Other,7820 ∑ Merchant Account Fees
990,CU Regent District 06,"Murray, Richard",Republican,1.3,6/1/20 0:00,Anedot,Baton Rouge,LA,70808,Other,7820 ∑ Merchant Account Fees
993,CU Regent District 06,"Murray, Richard",Republican,4.9,6/9/20 0:00,Anedot,Baton Rouge,LA,70808,Other,7820 ∑ Merchant Account Fees
994,CU Regent District 06,"Murray, Richard",Republican,4.3,6/11/20 0:00,Anedot,Baton Rouge,LA,70808,Other,7820 ∑ Merchant Account Fees
996,CU Regent District 06,"Murray, Richard",Republican,4.3,6/16/20 0:00,Anedot,Baton Rouge,LA,70808,Other,7820 ∑ Merchant Account Fees
997,CU Regent District 06,"Murray, Richard",Republican,2.6,6/18/20 0:00,Anedot,Baton Rouge,LA,70808,Other,7820 ∑ Merchant Account Fees
998,CU Regent District 06,"Murray, Richard",Republican,32.6,6/19/20 0:00,Anedot,Baton Rouge,LA,70808,Other,7820 ∑ Merchant Account Fees
999,CU Regent District 06,"Murray, Richard",Republican,9.6,6/25/20 0:00,Anedot,Baton Rouge,LA,70808,Other,7820 ∑ Merchant Account Fees
1000,CU Regent District 06,"Murray, Richard",Republican,8.6,7/2/20 0:00,Anedot,Baton Rouge,LA,70808,Other,7820 ∑ Merchant Account Fees
1002,CU Regent District 06,"Murray, Richard",Republican,14.6,7/4/20 0:00,Anedot,Baton Rouge,LA,70808,Other,7820 ∑ Merchant Account Fees
1003,CU Regent District 06,"Murray, Richard",Republican,2.3,7/5/20 0:00,Anedot,Baton Rouge,LA,70808,Other,7820 ∑ Merchant Account Fees
1004,CU Regent District 06,"Murray, Richard",Republican,8.3,7/7/20 0:00,Anedot,Baton Rouge,LA,70808,Other,7820 ∑ Merchant Account Fees
1005,CU Regent District 06,"Murray, Richard",Republican,4.3,7/11/20 0:00,Anedot,Baton Rouge,LA,70808,Other,7820 ∑ Merchant Account Fees
1006,CU Regent District 06,"Murray, Richard",Republican,4.3,7/26/20 0:00,Anedot,Baton Rouge,LA,70808,Other,7820 ∑ Merchant Account Fees
1010,CU Regent District 06,"Murray, Richard",Republican,0.9,8/8/20 0:00,Anedot,Baton Rouge,LA,70808,Other,7820 ∑ Merchant Account Fees
1011,CU Regent District 06,"Murray, Richard",Republican,0.9,8/8/20 0:00,Anedot,Baton Rouge,LA,70808,Other,7820 ∑ Merchant Account Fees
1012,CU Regent District 06,"Murray, Richard",Republican,3.6,8/9/20 0:00,Anedot,Baton Rouge,LA,70808,Other,7820 ∑ Merchant Account Fees
1013,CU Regent District 06,"Murray, Richard",Republican,5.6,8/10/20 0:00,Anedot,Baton Rouge,LA,70808,Other,7820 ∑ Merchant Account Fees
1014,CU Regent District 06,"Murray, Richard",Republican,4.3,8/14/20 0:00,Anedot,Baton Rouge,LA,70808,Other,7820 ∑ Merchant Account Fees
1015,CU Regent District 06,"Murray, Richard",Republican,5.9,8/18/20 0:00,Anedot,Baton Rouge,LA,70808,Other,7820 ∑ Merchant Account Fees
1016,CU Regent District 06,"Murray, Richard",Republican,8.3,8/19/20 0:00,Anedot,Baton Rouge,LA,70808,Other,7820 ∑ Merchant Account Fees
1017,CU Regent District 06,"Murray, Richard",Republican,20.6,8/26/20 0:00,Anedot,Baton Rouge,LA,70808,Other,7820 ∑ Merchant Account Fees
1018,CU Regent District 06,"Murray, Richard",Republican,1.7,8/27/20 0:00,Anedot,Baton Rouge,LA,70808,Other,7820 ∑ Merchant Account Fees
1023,CU Regent District 06,"Murray, Richard",Republican,4.3,9/5/20 0:00,Anedot,Baton Rouge,LA,70808,Other,7820 ∑ Merchant Account Fees
1034,CU Regent District 06,"Murray, Richard",Republican,4.3,9/23/20 0:00,Anedot,Baton Rouge,LA,70808,Other,7820 ∑ Merchant Account Fees
1057,CU Regent District 06,"Rahn, Priscilla",Republican,0.7,1/2/20 0:00,Anedot,Baton Rouge,LA,70808,Other,7820 ∑ Merchant Account Fees
1059,CU Regent District 06,"Rahn, Priscilla",Republican,4.3,1/4/20 0:00,Anedot,Baton Rouge,LA,70808,Other,7820 ∑ Merchant Account Fees
1063,CU Regent District 06,"Rahn, Priscilla",Republican,1.1,1/6/20 0:00,Anedot,Baton Rouge,LA,70808,Other,7820 ∑ Merchant Account Fees
1064,CU Regent District 06,"Rahn, Priscilla",Republican,10.3,1/11/20 0:00,Anedot,Baton Rouge,LA,70808,Other,7820 ∑ Merchant Account Fees
1065,CU Regent District 06,"Rahn, Priscilla",Republican,2.8,1/13/20 0:00,Anedot,Baton Rouge,LA,70808,Other,7820 ∑ Merchant Account Fees
1066,CU Regent District 06,"Rahn, Priscilla",Republican,12.6,1/15/20 0:00,Anedot,Baton Rouge,LA,70808,Other,7820 ∑ Merchant Account Fees
1067,CU Regent District 06,"Rahn, Priscilla",Republican,2.3,1/22/20 0:00,Anedot,Baton Rouge,LA,70808,Other,7820 ∑ Merchant Account Fees
1068,CU Regent District 06,"Rahn, Priscilla",Republican,5.7,1/23/20 0:00,Anedot,Baton Rouge,LA,70808,Other,7820 ∑ Merchant Account Fees
1070,CU Regent District 06,"Rahn, Priscilla",Republican,14.4,1/25/20 0:00,Anedot,Baton Rouge,LA,70808,Other,7820 ∑ Merchant Account Fees
1071,CU Regent District 06,"Rahn, Priscilla",Republican,10.3,1/25/20 0:00,Anedot,Baton Rouge,LA,70808,Other,7820 ∑ Merchant Account Fees
1073,CU Regent District 06,"Rahn, Priscilla",Republican,0.7,1/27/20 0:00,Anedot,Baton Rouge,LA,70808,Other,7820 ∑ Merchant Account Fees
1075,CU Regent District 06,"Rahn, Priscilla",Republican,1.1,1/28/20 0:00,Anedot,Baton Rouge,LA,70808,Other,7820 ∑ Merchant Account Fees
1076,CU Regent District 06,"Rahn, Priscilla",Republican,1.1,1/30/20 0:00,Anedot,Baton Rouge,LA,70808,Other,7820 ∑ Merchant Account Fees
1077,CU Regent District 06,"Rahn, Priscilla",Republican,1.1,2/1/20 0:00,Anedot,Baton Rouge,LA,70808,Other,7820 ∑ Merchant Account Fees
1081,CU Regent District 06,"Rahn, Priscilla",Republican,1.1,2/17/20 0:00,Anedot,Baton Rouge,LA,70808,Other,7820 ∑ Merchant Account Fees
1082,CU Regent District 06,"Rahn, Priscilla",Republican,2.3,2/20/20 0:00,Anedot,Baton Rouge,LA,70808,Other,7820 ∑ Merchant Account Fees
1084,CU Regent District 06,"Rahn, Priscilla",Republican,2.3,2/28/20 0:00,Anedot,Baton Rouge,LA,70808,Other,7820 ∑ Merchant Account Fees
1085,CU Regent District 06,"Rahn, Priscilla",Republican,7.54,2/29/20 0:00,Anedot,Baton Rouge,LA,70808,Other,7820 ∑ Merchant Account Fees
1086,CU Regent District 06,"Rahn, Priscilla",Republican,4.3,3/1/20 0:00,Anedot,Baton Rouge,LA,70808,Other,7820 ∑ Merchant Account Fees
1087,CU Regent District 06,"Rahn, Priscilla",Republican,1.1,3/2/20 0:00,Anedot,Baton Rouge,LA,70808,Other,7820 ∑ Merchant Account Fees
1090,CU Regent District 06,"Rahn, Priscilla",Republican,16.3,3/4/20 0:00,Anedot,Baton Rouge,LA,70808,Other,7820 ∑ Merchant Account Fees
1092,CU Regent District 06,"Rahn, Priscilla",Republican,1.1,3/6/20 0:00,Anedot,Baton Rouge,LA,70808,Other,7820 ∑ Merchant Account Fees
1096,CU Regent District 06,"Rahn, Priscilla",Republican,2.3,3/8/20 0:00,Anedot,Baton Rouge,LA,70808,Other,7820 ∑ Merchant Account Fees
1104,CU Regent District 06,"Rahn, Priscilla",Republican,19.1,3/31/20 0:00,Anedot,Baton Rouge,LA,70808,Other,7820 ∑ Merchant Account Fees
1106,CU Regent District 06,"Rahn, Priscilla",Republican,1.1,4/1/20 0:00,Anedot,Baton Rouge,LA,70808,Other,7820 ∑ Merchant Account Fees
1107,CU Regent District 06,"Rahn, Priscilla",Republican,2.3,4/2/20 0:00,Anedot,Baton Rouge,LA,70808,Other,7820 ∑ Merchant Account Fees
1110,CU Regent District 06,"Rahn, Priscilla",Republican,7.6,4/3/20 0:00,Anedot,Baton Rouge,LA,70808,Other,7820 ∑ Merchant Account Fees
1111,CU Regent District 06,"Rahn, Priscilla",Republican,1.1,4/4/20 0:00,Anedot,Baton Rouge,LA,70808,Other,7820 ∑ Merchant Account Fees
1112,CU Regent District 06,"Rahn, Priscilla",Republican,5.9,4/5/20 0:00,Anedot,Baton Rouge,LA,70808,Other,7820 ∑ Merchant Account Fees
1113,CU Regent District 06,"Rahn, Priscilla",Republican,4.3,4/7/20 0:00,Anedot,Baton Rouge,LA,70808,Other,7820 ∑ Merchant Account Fees
1114,CU Regent District 06,"Rahn, Priscilla",Republican,0.5,4/8/20 0:00,Anedot,Baton Rouge,LA,70808,Other,7820 ∑ Merchant Account Fees
1115,CU Regent District 06,"Rahn, Priscilla",Republican,0.7,4/9/20 0:00,Anedot,Baton Rouge,LA,70808,Other,7820 ∑ Merchant Account Fees
1116,CU Regent District 06,"Rahn, Priscilla",Republican,1.1,4/11/20 0:00,Anedot,Baton Rouge,LA,70808,Other,7820 ∑ Merchant Account Fees
1117,CU Regent District 06,"Rahn, Priscilla",Republican,2.3,4/12/20 0:00,Anedot,Baton Rouge,LA,70808,Other,7820 ∑ Merchant Account Fees
1118,CU Regent District 06,"Rahn, Priscilla",Republican,6.6,4/15/20 0:00,Anedot,Baton Rouge,LA,70808,Other,7820 ∑ Merchant Account Fees
1119,CU Regent District 06,"Rahn, Priscilla",Republican,3.4,4/17/20 0:00,Anedot,Baton Rouge,LA,70808,Other,7820 ∑ Merchant Account Fees
1121,CU Regent District 06,"Rahn, Priscilla",Republican,1.1,4/22/20 0:00,Anedot,Baton Rouge,LA,70808,Other,7820 ∑ Merchant Account Fees
1123,CU Regent District 06,"Rahn, Priscilla",Republican,2.3,4/23/20 0:00,Anedot,Baton Rouge,LA,70808,Other,7820 ∑ Merchant Account Fees
1126,CU Regent District 06,"Rahn, Priscilla",Republican,2.2,4/25/20 0:00,Anedot,Baton Rouge,LA,70808,Other,7820 ∑ Merchant Account Fees
1127,CU Regent District 06,"Rahn, Priscilla",Republican,1.1,4/26/20 0:00,Anedot,Baton Rouge,LA,70808,Other,7820 ∑ Merchant Account Fees
1130,CU Regent District 06,"Rahn, Priscilla",Republican,4.1,4/30/20 0:00,Anedot,Baton Rouge,LA,70808,Other,7820 ∑ Merchant Account Fees
1132,CU Regent District 06,"Rahn, Priscilla",Republican,4.3,5/2/20 0:00,Anedot,Baton Rouge,LA,70808,Other,7820 ∑ Merchant Account Fees
1135,CU Regent District 06,"Rahn, Priscilla",Republican,1.1,5/6/20 0:00,Anedot,Baton Rouge,LA,70808,Other,7820 ∑ Merchant Account Fees
1139,CU Regent District 06,"Rahn, Priscilla",Republican,6.7,5/9/20 0:00,Anedot,Baton Rouge,LA,70808,Other,7820 ∑ Merchant Account Fees
1140,CU Regent District 06,"Rahn, Priscilla",Republican,5.2,5/11/20 0:00,Anedot,Baton Rouge,LA,70808,Other,7820 ∑ Merchant Account Fees
1141,CU Regent District 06,"Rahn, Priscilla",Republican,2.7,5/11/20 0:00,Anedot,Baton Rouge,LA,70808,Other,7820 ∑ Merchant Account Fees
1143,CU Regent District 06,"Rahn, Priscilla",Republican,23.3,5/13/20 0:00,Anedot,Baton Rouge,LA,70808,Other,7820 ∑ Merchant Account Fees
1144,CU Regent District 06,"Rahn, Priscilla",Republican,1.8,5/14/20 0:00,Anedot,Baton Rouge,LA,70808,Other,7820 ∑ Merchant Account Fees
1145,CU Regent District 06,"Rahn, Priscilla",Republican,1.3,5/20/20 0:00,Anedot,Baton Rouge,LA,70808,Other,7820 ∑ Merchant Account Fees
1146,CU Regent District 06,"Rahn, Priscilla",Republican,1.1,5/22/20 0:00,Anedot,Baton Rouge,LA,70808,Other,7820 ∑ Merchant Account Fees
1147,CU Regent District 06,"Rahn, Priscilla",Republican,7.4,5/22/20 0:00,Anedot,Baton Rouge,LA,70808,Other,7820 ∑ Merchant Account Fees
1150,CU Regent District 06,"Rahn, Priscilla",Republican,2.3,5/25/20 0:00,Anedot,Baton Rouge,LA,70808,Other,7820 ∑ Merchant Account Fees
1152,CU Regent District 06,"Rahn, Priscilla",Republican,4.3,5/26/20 0:00,Anedot,Baton Rouge,LA,70808,Other,7820 ∑ Merchant Account Fees
1153,CU Regent District 06,"Rahn, Priscilla",Republican,9.8,5/27/20 0:00,Anedot,Baton Rouge,LA,70808,Other,7820 ∑ Merchant Account Fees
1156,CU Regent District 06,"Rahn, Priscilla",Republican,0.7,6/1/20 0:00,Anedot,Baton Rouge,LA,70808,Other,7820 ∑ Merchant Account Fees
1159,CU Regent District 06,"Rahn, Priscilla",Republican,2.3,6/2/20 0:00,Anedot,Baton Rouge,LA,70808,Other,7820 ∑ Merchant Account Fees
1161,CU Regent District 06,"Rahn, Priscilla",Republican,2.1,6/5/20 0:00,Anedot,Baton Rouge,LA,70808,Other,7820 ∑ Merchant Account Fees
1162,CU Regent District 06,"Rahn, Priscilla",Republican,5.4,6/6/20 0:00,Anedot,Baton Rouge,LA,70808,Other,7820 ∑ Merchant Account Fees
1163,CU Regent District 06,"Rahn, Priscilla",Republican,1.1,6/8/20 0:00,Anedot,Baton Rouge,LA,70808,Other,7820 ∑ Merchant Account Fees
1164,CU Regent District 06,"Rahn, Priscilla",Republican,1.1,6/9/20 0:00,Anedot,Baton Rouge,LA,70808,Other,7820 ∑ Merchant Account Fees
1165,CU Regent District 06,"Rahn, Priscilla",Republican,1.1,6/10/20 0:00,Anedot,Baton Rouge,LA,70808,Other,7820 ∑ Merchant Account Fees
1166,CU Regent District 06,"Rahn, Priscilla",Republican,1.1,6/18/20 0:00,Anedot,Baton Rouge,LA,70808,Other,7820 ∑ Merchant Account Fees
1173,CU Regent District 06,"Rahn, Priscilla",Republican,17.4,11/19/19 0:00,Anedot,Baton Rouge,LA,70808,Other,7820 ∑ Merchant Account Fees
1174,CU Regent District 06,"Rahn, Priscilla",Republican,2.3,11/20/19 0:00,Anedot,Baton Rouge,LA,70808,Other,7820 ∑ Merchant Account Fees
1175,CU Regent District 06,"Rahn, Priscilla",Republican,1.1,11/23/19 0:00,Anedot,Baton Rouge,LA,70808,Other,7820 ∑ Merchant Account Fees
1176,CU Regent District 06,"Rahn, Priscilla",Republican,10.3,11/25/19 0:00,Anedot,Baton Rouge,LA,70808,Other,7820 ∑ Merchant Account Fees
1177,CU Regent District 06,"Rahn, Priscilla",Republican,16.3,12/4/19 0:00,Anedot,Baton Rouge,LA,70808,Other,7820 ∑ Merchant Account Fees
1178,CU Regent District 06,"Rahn, Priscilla",Republican,1.1,12/7/19 0:00,Anedot,Baton Rouge,LA,70808,Other,7820 ∑ Merchant Account Fees
1182,CU Regent District 06,"Rahn, Priscilla",Republican,4.3,12/13/19 0:00,Anedot,Baton Rouge,LA,70808,Other,7820 ∑ Merchant Account Fees
1183,CU Regent District 06,"Rahn, Priscilla",Republican,8.3,12/13/19 0:00,Anedot,Baton Rouge,LA,70808,Other,7820 ∑ Merchant Account Fees
1186,CU Regent District 06,"Rahn, Priscilla",Republican,4.3,12/18/19 0:00,Anedot,Baton Rouge,LA,70808,Other,7820 ∑ Merchant Account Fees
1187,CU Regent District 06,"Rahn, Priscilla",Republican,4.3,12/21/19 0:00,Anedot,Baton Rouge,LA,70808,Other,7820 ∑ Merchant Account Fees
1188,CU Regent District 06,"Rahn, Priscilla",Republican,3.3,12/22/19 0:00,Anedot,Baton Rouge,LA,70808,Other,7820 ∑ Merchant Account Fees
1191,CU Regent District 06,"Rahn, Priscilla",Republican,37.4,12/31/19 0:00,Anedot,Baton Rouge,LA,70808,Other,7820 ∑ Merchant Account Fees
509,CU Regent  District 02,"Rennison, Callie",Democratic,157.0,5/30/20 0:00,Fed Ex,Louisville,CO,780026,Other,Copies Of Documents
391,Bd. Ed. District 07,"Esser, Karla",Democratic,27.18,8/14/20 0:00,Costco,Arvada,CO,80002,Advertising,Snacks For Literature Walkers
1154,CU Regent District 06,"Rahn, Priscilla",Republican,1.0,5/29/20 0:00,Firstbank North,Arvada,CO,80006,Other,7810 ∑ Service Charges
840,CU Regent District 06,"Spiegel, Ilana",Democratic,500.0,4/1/20 0:00,Jessica  Chauvin,Aurora,CO,80011,Consultant & Professional Services,
853,CU Regent District 06,"Spiegel, Ilana",Democratic,500.0,6/1/20 0:00,Jessica  Chauvin,Aurora,CO,80011,Consultant & Professional Services,
872,CU Regent District 06,"Spiegel, Ilana",Democratic,1399.0,9/4/20 0:00,Jessica  Chauvin,Aurora,CO,80011,Consultant & Professional Services,
42,Bd. Ed. District 01,"Escarcega, Lisa",Democratic,350.0,7/2/20 0:00,Hugo  Quintana,Aurora,CO,80012,Other,Phone Banking
91,Bd. Ed. District 01,"Morganstern, Donna",Democratic,360.0,2/16/20 0:00,Jefferson Prescott Consulting,Aurora,CO,80012,Consultant & Professional Services,Campaign Outreach
111,Bd. Ed. District 01,"Morganstern, Donna",Democratic,45.0,4/4/20 0:00,Jefferson Prescott Consulting,Aurora,CO,80012,Consultant & Professional Services,Campaign Outreach
139,Bd. Ed. District 01,"Morganstern, Donna",Democratic,1035.0,6/26/20 0:00,Jefferson Prescott Consulting,Aurora,CO,80012,Consultant & Professional Services,Prep For Brother Jeff Appearances And May/June Media.
837,CU Regent District 06,"Spiegel, Ilana",Democratic,292.5,2/24/20 0:00,Jefferson Prescott Strategies,Aurora,CO,80012,Consultant & Professional Services,
844,CU Regent District 06,"Spiegel, Ilana",Democratic,45.0,4/26/20 0:00,Jefferson Prescott Strategies,Aurora,CO,80012,Consultant & Professional Services,
865,CU Regent District 06,"Spiegel, Ilana",Democratic,495.0,8/4/20 0:00,Jefferson Prescott Strategies,Aurora,CO,80012,Consultant & Professional Services,
892,CU Regent District 06,"Spiegel, Ilana",Democratic,500.0,10/13/20 0:00,Jefferson Prescott Strategies,Aurora,CO,80012,Consultant & Professional Services,
1088,CU Regent District 06,"Rahn, Priscilla",Republican,100.0,3/3/20 0:00,Theeductr,Aurora,CO,80013,Other,6830 ∑ Advertising Expense
792,CU Regent District 02,"Harber, Aaron",Democratic,1735.0,6/18/20 0:00,K3 Colorado,Aurora,CO,80014,Advertising,Advertising On Kcdo
794,CU Regent District 02,"Harber, Aaron",Democratic,680.0,6/19/20 0:00,Kcdo,Auroa,CO,80014,Advertising,Broadcast
1192,CU Regent District 06,"Otwell, Christopher",Unity Party,5.0,8/20/20 0:00,Christopher E Otwell,Aurora,CO,80017,Miscellaneous,Notary Expense For The Acceptance Letter
1193,CU Regent District 06,"Otwell, Christopher",Unity Party,7.5,8/20/20 0:00,Christopher E Otwell,Aurora,CO,80017,Miscellaneous,"Usps Priority Mail Tracking For Form Submission
Usps Tracking #:  9505510449140233517486"
721,CU Regent District 02,"Gross, David",Democratic,22.75,6/25/20 0:00,First Bank,Broomfield,CO,80020,Bank Fees,
739,CU Regent District 02,"Gross, David",Democratic,110.0,7/28/20 0:00,First Bank,Broomfield,CO,80020,Bank Fees,
741,CU Regent District 02,"Gross, David",Democratic,2.0,8/25/20 0:00,First Bank,Broomfield,CO,80020,Bank Fees,
958,CU Regent District 06,"Murray, Richard",Republican,241.48,4/9/20 0:00,Wizbang Solutions Inc,Commerce City,CO,80022,Other,6221 ∑ Printing
960,CU Regent District 06,"Murray, Richard",Republican,-241.48,4/9/20 0:00,Wizbang Solutions Inc,Commerce City,CO,80022,Other,Offset Due To Update Of Filed Item - 6221 ∑ Printing
961,CU Regent District 06,"Murray, Richard",Republican,241.18,4/9/20 0:00,Wizbang Solutions Inc,Commerce City,CO,80022,Other,6221 ∑ Printing
616,CU Regent District 02,"Gross, David",Democratic,1000.0,9/4/19 0:00,Rkg Development,Lafayette,CO,80026,Consultant & Professional Services,Compliance Consulting
617,CU Regent District 02,"Gross, David",Democratic,77.0,9/4/19 0:00,Usps,Lafayette,CO,80026,Rent & Utilities,Po Box
626,CU Regent District 02,"Gross, David",Democratic,77.0,1/2/20 0:00,United States Postal Service,Lafayette,CO,80026,Rent & Utilities,Po Box Renewal
629,CU Regent District 02,"Gross, David",Democratic,500.0,1/7/20 0:00,Rkg Development,Lafayette,CO,80026,Consultant & Professional Services,Compliance Consulting
640,CU Regent District 02,"Gross, David",Democratic,1000.0,2/4/20 0:00,Rkg Development,Lafayette,CO,80026,Consultant & Professional Services,Compliance Consulting
653,CU Regent District 02,"Gross, David",Democratic,1000.0,3/9/20 0:00,Rkg Development,Lafayette,CO,80026,Consultant & Professional Services,Compliance Consulting
664,CU Regent District 02,"Gross, David",Democratic,1000.0,4/1/20 0:00,Rkg Development,Lafayette,CO,80026,Consultant & Professional Services,Compliance Consulting
669,CU Regent District 02,"Gross, David",Democratic,1000.0,5/2/20 0:00,Rkg Development,Lafayette,CO,80026,Consultant & Professional Services,Compliance Consulting
688,CU Regent District 02,"Gross, David",Democratic,1000.0,6/1/20 0:00,Rkg Development,Lafayette,CO,80026,Consultant & Professional Services,Compliance Consulting
736,CU Regent District 02,"Gross, David",Democratic,1000.0,7/1/20 0:00,Rkg Development,Lafayette,CO,80026,Consultant & Professional Services,Compliance Consulting
738,CU Regent District 02,"Gross, David",Democratic,1000.0,7/20/20 0:00,Rkg Development,Lafayette,CO,80026,Consultant & Professional Services,Compliance Consulting
746,CU Regent District 02,"Gross, David",Democratic,500.0,10/7/19 0:00,Rkg Development,Lafayette,CO,80026,Consultant & Professional Services,
754,CU Regent District 02,"Gross, David",Democratic,500.0,11/12/19 0:00,Rkg Development,Lafayette,CO,80026,Consultant & Professional Services,
760,CU Regent District 02,"Gross, David",Democratic,500.0,12/3/19 0:00,Rkg Development,Lafayette,CO,80026,Consultant & Professional Services,
772,CU Regent District 02,"Harber, Aaron",Democratic,9.9,1/31/20 0:00,Great Western Bank,Lafayette,CO,80026,Bank Fees,
775,CU Regent District 02,"Harber, Aaron",Democratic,4.95,2/29/20 0:00,Great Western Bank,Lafayette,CO,80026,Bank Fees,
779,CU Regent District 02,"Harber, Aaron",Democratic,4.95,3/31/20 0:00,Great Western Bank,Lafayette,CO,80026,Bank Fees,
985,CU Regent District 06,"Murray, Richard",Republican,1067.5,5/25/20 0:00,"Sws Polifi, Llc",Lafayette,CO,80026,Other,7520 ∑ Accounting Fees
991,CU Regent District 06,"Murray, Richard",Republican,150.0,6/2/20 0:00,"Sws Polifi, Llc",Lafayette,CO,80026,Other,7520 ∑ Accounting Fees
1009,CU Regent District 06,"Murray, Richard",Republican,450.0,7/31/20 0:00,"Sws Polifi, Llc",Lafayette,CO,80026,Other,7520 ∑ Accounting Fees
1050,CU Regent District 06,"Murray, Richard",Republican,150.0,10/15/20 0:00,"Sws Polifi, Llc",Lafayette,CO,80026,Other,7520 ∑ Accounting Fees
1190,CU Regent District 06,"Rahn, Priscilla",Republican,500.0,12/24/19 0:00,"Sws Polifi, Llc",Lafayette,CO,80026,Other,7410 ∑ General Consultants
493,CU Regent  District 02,"Rennison, Callie",Democratic,35.0,4/2/20 0:00,Us Postal Service,Superior,CO,80027,Fundraising Expenses,
500,CU Regent  District 02,"Rennison, Callie",Democratic,35.0,5/2/20 0:00,Us Postal Service,Superior,CO,80027,Fundraising Expenses,
512,CU Regent  District 02,"Rennison, Callie",Democratic,35.0,6/1/20 0:00,Us Postal Service,Superior,CO,80027,Fundraising Expenses,Thank You Post Card Stamps
534,CU Regent  District 02,"Rennison, Callie",Democratic,70.0,6/19/20 0:00,Us Postal Service,Superior,CO,80027,Fundraising Expenses,
426,Bd. Ed. District 07,"Esser, Karla",Democratic,500.0,11/7/20 0:00,Susie  Omeron,Wheat Ridge,CO,80033,Consultant & Professional Services,Check #1021
946,CU Regent District 06,"Murray, Richard",Republican,2550.0,3/3/20 0:00,Roger  Hudson,Castle Pines,CO,80108,Other,7440 ∑ Communications Consultants
955,CU Regent District 06,"Murray, Richard",Republican,750.0,4/7/20 0:00,Roger  Hudson,Castle Pines,CO,80108,Other,7440 ∑ Communications Consultants
956,CU Regent District 06,"Murray, Richard",Republican,2550.0,4/9/20 0:00,Roger  Hudson,Castle Pines,CO,80108,Other,7440 ∑ Communications Consultants
959,CU Regent District 06,"Murray, Richard",Republican,-2550.0,4/9/20 0:00,Roger  Hudson,Castle Pines,CO,80108,Other,Offset Due To Deletion Of Filed Item - 7440 ∑ Communications Consultants
971,CU Regent District 06,"Murray, Richard",Republican,750.0,5/6/20 0:00,Roger  Hudson,Castle Pines,CO,80108,Other,7440 ∑ Communications Consultants
1007,CU Regent District 06,"Murray, Richard",Republican,143.5,7/31/20 0:00,Roger  Hudson,Castle Pines,CO,80108,Other,7440 ∑ Communications Consultants
1008,CU Regent District 06,"Murray, Richard",Republican,750.0,7/31/20 0:00,Roger  Hudson,Castle Pines,CO,80108,Other,7440 ∑ Communications Consultants
2,Bd. Ed. District 01,"Escarcega, Lisa",Democratic,1800.0,1/9/20 0:00,Jessica  Chauvin,Aurora,CO,80110,Consultant & Professional Services,
5,Bd. Ed. District 01,"Escarcega, Lisa",Democratic,2500.0,2/4/20 0:00,Jessica  Chauvin,Aurora,CO,80110,Consultant & Professional Services,
8,Bd. Ed. District 01,"Escarcega, Lisa",Democratic,2500.0,3/5/20 0:00,Jessica  Chauvin,Aurora,CO,80110,Consultant & Professional Services,
9,Bd. Ed. District 01,"Escarcega, Lisa",Democratic,500.0,3/9/20 0:00,Jessica  Chauvin,Aurora,CO,80110,Consultant & Professional Services,
10,Bd. Ed. District 01,"Escarcega, Lisa",Democratic,2500.0,3/31/20 0:00,Jessica  Chauvin,Aurora,CO,80110,Consultant & Professional Services,
12,Bd. Ed. District 01,"Escarcega, Lisa",Democratic,1000.0,4/6/20 0:00,Jessica  Chauvin,Aurora,CO,80110,Consultant & Professional Services,
19,Bd. Ed. District 01,"Escarcega, Lisa",Democratic,3000.0,5/4/20 0:00,Jessica  Chauvin,Aurora,CO,80110,Consultant & Professional Services,
23,Bd. Ed. District 01,"Escarcega, Lisa",Democratic,3000.0,6/1/20 0:00,Jessica  Chauvin,Aurora,CO,80110,Consultant & Professional Services,Consultiv Services
41,Bd. Ed. District 01,"Escarcega, Lisa",Democratic,3500.0,7/2/20 0:00,Jessica  Chauvin,Aurora,CO,80110,Consultant & Professional Services,
879,CU Regent District 06,"Spiegel, Ilana",Democratic,3500.0,9/18/20 0:00,United States Post Office,Englewood,CO,80110,Other,Postage
898,CU Regent District 06,"Spiegel, Ilana",Democratic,175.0,10/20/20 0:00,United States Post Office,Englewood,CO,80110,Other,Postage
1089,CU Regent District 06,"Rahn, Priscilla",Republican,174.53,3/4/20 0:00,Altitude Denver Graphics,Englewood,CO,80110,Other,6621 ∑ Yard Signs
943,CU Regent District 06,"Murray, Richard",Republican,750.0,3/2/20 0:00,The Starboard Group,Greenwood Village,CO,80111,Other,7430 ∑ Fundraising Consultants
944,CU Regent District 06,"Murray, Richard",Republican,742.5,3/2/20 0:00,The Starboard Group,Greenwood Village,CO,80111,Other,7430 ∑ Fundraising Consultants
963,CU Regent District 06,"Murray, Richard",Republican,45.12,4/21/20 0:00,The Starboard Group,Greenwood Village,CO,80111,Other,5190 ∑ Other Event Expense
964,CU Regent District 06,"Murray, Richard",Republican,3342.5,4/21/20 0:00,The Starboard Group,Greenwood Village,CO,80111,Other,7430 ∑ Fundraising Consultants
1039,CU Regent District 06,"Murray, Richard",Republican,125.0,9/28/20 0:00,Harmony Design Llc,Englewood,CO,80111,Other,6640 ∑ Design & Layout
1094,CU Regent District 06,"Rahn, Priscilla",Republican,176.18,3/6/20 0:00,Pancake House,Greenwood Village,CO,80111,Other,6730 ∑ Volunteer Recruitment
317,Bd. Ed. District 03,"Rankin, Joyce",Republican,13.28,7/23/20 0:00,Anedot,New Orleans,LA,80112,Bank Fees,
580,CU Regent  District 02,"Rennison, Callie",Democratic,1200.0,10/13/20 0:00,A Whole Lot Of People For Change,Centennial,CO,80112,Contributions,
585,CU Regent  District 02,"Rennison, Callie",Democratic,1000.0,10/19/20 0:00,A Whole Lot Of People For Change,Centennial,CO,80112,Donation for Independent Expenditures,
864,CU Regent District 06,"Spiegel, Ilana",Democratic,100.0,8/2/20 0:00,Emma  Carroll,Centennial,CO,80112,Consultant & Professional Services,
873,CU Regent District 06,"Spiegel, Ilana",Democratic,549.0,9/4/20 0:00,Emma  Carroll,Centennial,CO,80112,Consultant & Professional Services,
883,CU Regent District 06,"Spiegel, Ilana",Democratic,649.0,10/1/20 0:00,Emma  Carroll,Centennial,CO,80112,Employee Services,
907,CU Regent District 06,"Spiegel, Ilana",Democratic,649.0,11/13/20 0:00,Emma  Carroll,Centennial,CO,80112,Consultant & Professional Services,
414,Bd. Ed. District 07,"Esser, Karla",Democratic,280.0,10/7/20 0:00,Us Postal Service,Englewood,CO,80113,Advertising,800 Postcard Stamps
981,CU Regent District 06,"Murray, Richard",Republican,3050.0,5/20/20 0:00,Legacy Consulting Llc,Englewood,CO,80113,Other,6141 ∑ Space Buys
992,CU Regent District 06,"Murray, Richard",Republican,3750.0,6/3/20 0:00,Legacy Consulting Llc,Englewood,CO,80113,Other,6141 ∑ Space Buys
995,CU Regent District 06,"Murray, Richard",Republican,2787.78,6/12/20 0:00,Legacy Consulting Llc,Englewood,CO,80113,Other,6141 ∑ Space Buys
1001,CU Regent District 06,"Murray, Richard",Republican,4162.78,7/2/20 0:00,Legacy Consulting Llc,Englewood,CO,80113,Other,7420 ∑ Media Consultants
1029,CU Regent District 06,"Murray, Richard",Republican,25.41,9/17/20 0:00,Legacy Consulting Llc,Englewood,CO,80113,Other,7490 ∑ Other Consultants
1048,CU Regent District 06,"Murray, Richard",Republican,5025.52,10/9/20 0:00,Legacy Consulting Llc,Englewood,CO,80113,Other,6830 ∑ Advertising Expense
1052,CU Regent District 06,"Murray, Richard",Republican,500.0,10/19/20 0:00,Legacy Consulting Llc,Englewood,CO,80113,Other,6190 ∑ Other Media Expense
1053,CU Regent District 06,"Murray, Richard",Republican,500.0,10/20/20 0:00,Legacy Consulting Llc,Englewood,CO,80113,Other,6190 ∑ Other Media Expense
610,CU Regent District 02,"Gross, David",Democratic,125.0,8/22/19 0:00,Kristine  Kelly,Centennial,CO,80122,Consultant & Professional Services,Logo Design
871,CU Regent District 06,"Spiegel, Ilana",Democratic,3372.23,9/3/20 0:00,Minuteman Press,Centennial,CO,80122,Advertising,Yard Signs
878,CU Regent District 06,"Spiegel, Ilana",Democratic,1893.21,9/18/20 0:00,Minuteman Press,Centennial,CO,80122,Advertising,Printing
880,CU Regent District 06,"Spiegel, Ilana",Democratic,1270.33,9/21/20 0:00,Minuteman Press,Centennial,CO,80122,Advertising,Printing
888,CU Regent District 06,"Spiegel, Ilana",Democratic,1893.21,10/9/20 0:00,Minuteman Press,Centennial,CO,80122,Advertising,Printing
1069,CU Regent District 06,"Rahn, Priscilla",Republican,41.27,1/24/20 0:00,Office Depot,Littleton,CO,80122,Other,6614 ∑ Flyers
1072,CU Regent District 06,"Rahn, Priscilla",Republican,16.03,1/27/20 0:00,Office Depot,Littleton,CO,80122,Other,6614 ∑ Flyers
1074,CU Regent District 06,"Rahn, Priscilla",Republican,27.25,1/28/20 0:00,Office Depot,Littleton,CO,80122,Other,6614 ∑ Flyers
1080,CU Regent District 06,"Rahn, Priscilla",Republican,313.71,2/17/20 0:00,Office Depot,Littleton,CO,80122,Other,6614 ∑ Flyers
1091,CU Regent District 06,"Rahn, Priscilla",Republican,73.22,3/6/20 0:00,Office Depot,Littleton,CO,80122,Other,6614 ∑ Flyers
1097,CU Regent District 06,"Rahn, Priscilla",Republican,44.93,3/16/20 0:00,Office Depot,Littleton,CO,80122,Other,6614 ∑ Flyers
417,Bd. Ed. District 07,"Esser, Karla",Democratic,39.83,10/15/20 0:00,Costco,Littleton,CO,80123,"Food, Beverages and Meals",Snacks For Volunteer Literature Walkers
429,Bd. Ed. District 07,"Esser, Karla",Democratic,250.0,11/22/20 0:00,Julia  Varnell-Sarjeant,Highlands Ranch,CO,80126,Advertising,"Website Administration
Check #1022"
168,Bd. Ed. District 01,"Wulff, Sydnnia",Republican,5.0,6/11/20 0:00,Options Credit Union,Littleton,CO,80127,Bank Fees,To Open Checking Account For Campaign Purposes.
381,Bd. Ed. District 07,"Esser, Karla",Democratic,1500.0,7/16/20 0:00,Blue Summit Consultants Llc,Highlands Ranch,CO,80129,Consultant & Professional Services,"Check #1011
Website Reconstruction"
382,Bd. Ed. District 07,"Esser, Karla",Democratic,5465.0,7/16/20 0:00,Blue Summit Consultants Llc,Highlands Ranch,CO,80129,Advertising,"Digital Marketing
Check # 1011"
398,Bd. Ed. District 07,"Esser, Karla",Democratic,5465.0,9/14/20 0:00,Blue Summit Consultants Llc,Highlands Ranch,CO,80129,Advertising,"Digital Marketing
Check #1015
Invoice #65E0596B-0002"
868,CU Regent District 06,"Spiegel, Ilana",Democratic,11870.0,8/24/20 0:00,Blue Summit Consultants,Highlands Ranch,CO,80129,Consultant & Professional Services,
897,CU Regent District 06,"Spiegel, Ilana",Democratic,10465.0,10/18/20 0:00,Blue Summit Consultants,Highlands Ranch,CO,80129,Consultant & Professional Services,
1095,CU Regent District 06,"Rahn, Priscilla",Republican,110.0,3/6/20 0:00,Us Postal Service,Highlands Ranch,CO,80130,Other,6213 ∑ Postage
1098,CU Regent District 06,"Rahn, Priscilla",Republican,55.0,3/17/20 0:00,Us Postal Service,Highlands Ranch,CO,80130,Other,6213 ∑ Postage
1099,CU Regent District 06,"Rahn, Priscilla",Republican,55.0,3/17/20 0:00,Us Postal Service,Highlands Ranch,CO,80130,Other,6213 ∑ Postage
1100,CU Regent District 06,"Rahn, Priscilla",Republican,55.0,3/20/20 0:00,Us Postal Service,Highlands Ranch,CO,80130,Other,6213 ∑ Postage
1102,CU Regent District 06,"Rahn, Priscilla",Republican,4.55,3/24/20 0:00,Us Postal Service,Highlands Ranch,CO,80130,Other,6213 ∑ Postage
1103,CU Regent District 06,"Rahn, Priscilla",Republican,3.5,3/24/20 0:00,Us Postal Service,Highlands Ranch,CO,80130,Other,6213 ∑ Postage
1105,CU Regent District 06,"Rahn, Priscilla",Republican,74.25,3/31/20 0:00,Us Postal Service,Highlands Ranch,CO,80130,Other,6213 ∑ Postage
1109,CU Regent District 06,"Rahn, Priscilla",Republican,6.0,4/2/20 0:00,Us Postal Service,Highlands Ranch,CO,80130,Other,6213 ∑ Postage
61,Bd. Ed. District 01,"Escarcega, Lisa",Democratic,1953.56,10/25/19 0:00,Bold Text Llc,Parker,CO,80138,Consultant & Professional Services,Payment For Consulting Services
66,Bd. Ed. District 01,"Escarcega, Lisa",Democratic,1875.0,11/30/19 0:00,Bold Text Llc,Parker,CO,80138,Consultant & Professional Services,Payment To Boldtext For Consulting Services
340,Bd. Ed. District 07,"Esser, Karla",Democratic,1450.0,8/29/19 0:00,Bold Text Llc,Parker,CO,80138,Consultant & Professional Services,"Development Of Webpage
Expenditure By Candidate"
345,Bd. Ed. District 07,"Esser, Karla",Democratic,700.0,1/3/20 0:00,Bold Text Llc,Parker,CO,80138,Consultant & Professional Services,Consultant Fees
346,Bd. Ed. District 07,"Esser, Karla",Democratic,283.28,1/10/20 0:00,Bold Text Llc,Parker,CO,80138,Advertising,Facebook Advertisement Expenses
348,Bd. Ed. District 07,"Esser, Karla",Democratic,705.71,1/26/20 0:00,Bold Text Llc,Parker,CO,80138,Consultant & Professional Services,Campaign Consulting
404,Bd. Ed. District 07,"Esser, Karla",Democratic,608.75,10/1/19 0:00,Bold Text Llc,Parker,CO,80138,Consultant & Professional Services,Graphic Design And Campaign Consulting
420,Bd. Ed. District 07,"Esser, Karla",Democratic,700.0,10/27/19 0:00,Bold Text Llc,Parker,CO,80138,Consultant & Professional Services,Consultant Fees
432,Bd. Ed. District 07,"Esser, Karla",Democratic,700.0,12/2/19 0:00,Bold Text Llc,Parker,CO,80138,Consultant & Professional Services,Consultant Fees
816,CU Regent District 06,"Spiegel, Ilana",Democratic,485.0,5/31/19 0:00,Bold Text Llc,Parker,CO,80138,Consultant & Professional Services,Invoice 19-0302
819,CU Regent District 06,"Spiegel, Ilana",Democratic,1500.0,6/25/19 0:00,Bold Text Llc,Parker,CO,80138,Consultant & Professional Services,
827,CU Regent District 06,"Spiegel, Ilana",Democratic,500.0,8/12/19 0:00,Bold Text Llc,Parker,CO,80138,Consultant & Professional Services,
560,CU Regent  District 02,"Rennison, Callie",Democratic,1231.67,8/21/20 0:00,Campaign Products Of The Rockies,Denver,CO,80201,Advertising,Yard Signs Made And Shipping
645,CU Regent District 02,"Gross, David",Democratic,306.95,2/18/20 0:00,Campaign Products Of The Rockies,Denver,CO,80201,Consultant & Professional Services,Printing Candidate Petitions
655,CU Regent District 02,"Gross, David",Democratic,130.0,3/10/20 0:00,Campaign Products Of The Rockies,Denver,CO,80201,Consultant & Professional Services,Printing Candidate Petitions
692,CU Regent District 02,"Gross, David",Democratic,1716.63,6/4/20 0:00,Campaign Products Of The Rockies,Denver,CO,80201,Other,Yard Signs
1171,CU Regent District 06,"Rahn, Priscilla",Republican,275.0,11/7/19 0:00,Logo Tournament,Kelowna,BC,80201,Other,6640 ∑ Design & Layout
349,Bd. Ed. District 07,"Esser, Karla",Democratic,3000.0,1/29/20 0:00,Engage Strategies Llc,Denver,CO,80202,Consultant & Professional Services,"Campaign Consulting
Check #1002"
354,Bd. Ed. District 07,"Esser, Karla",Democratic,1500.0,2/21/20 0:00,Engage Strategies Llc,Denver,CO,80202,Consultant & Professional Services,"Consulting $1500
Check #1004
Invoice #165 Inv0065"
355,Bd. Ed. District 07,"Esser, Karla",Democratic,592.17,2/21/20 0:00,Engage Strategies Llc,Denver,CO,80202,Fundraising Expenses,"Check #1004
500 Postcards
Invoice #165 Inv0065"
358,Bd. Ed. District 07,"Esser, Karla",Democratic,1500.0,3/3/20 0:00,Engage Strategies Llc,Denver,CO,80202,Consultant & Professional Services,"Campaign Consulting $1500
Check #1005
Invoice #169 Inv0069"
359,Bd. Ed. District 07,"Esser, Karla",Democratic,1726.28,3/3/20 0:00,Engage Strategies Llc,Denver,CO,80202,Advertising,"Walk Pieces And Yard Sign Development
Check #1005
Invoice #169 Inv0069"
361,Bd. Ed. District 07,"Esser, Karla",Democratic,1500.0,4/2/20 0:00,Engage Strategies Llc,Denver,CO,80202,Consultant & Professional Services,"Campaign Consulting
Check #1006"
369,Bd. Ed. District 07,"Esser, Karla",Democratic,1500.0,5/1/20 0:00,Engage Strategies Llc,Denver,CO,80202,Consultant & Professional Services,"Campaign Consulting
Check #1008
Invoice #176"
370,Bd. Ed. District 07,"Esser, Karla",Democratic,166.16,5/1/20 0:00,Engage Strategies Llc,Denver,CO,80202,Advertising,"Banner
Check #1008
Invoice #176"
376,Bd. Ed. District 07,"Esser, Karla",Democratic,1500.0,6/1/20 0:00,Engage Strategies Llc,Denver,CO,80202,Consultant & Professional Services,"Campaign Consulting
Check #1009
Invoice #184"
377,Bd. Ed. District 07,"Esser, Karla",Democratic,479.81,6/1/20 0:00,Engage Strategies Llc,Denver,CO,80202,Fundraising Expenses,"5000 Postcards
Check #1009
Invoice #184"
380,Bd. Ed. District 07,"Esser, Karla",Democratic,1500.0,7/2/20 0:00,Engage Strategies Llc,Denver,CO,80202,Consultant & Professional Services,"Check #1010
Campaign Consulting"
386,Bd. Ed. District 07,"Esser, Karla",Democratic,1500.0,8/5/20 0:00,Engage Strategies Llc,Denver,CO,80202,Consultant & Professional Services,"Campaign Consulting
Invoice #201
Check #1012"
387,Bd. Ed. District 07,"Esser, Karla",Democratic,481.49,8/5/20 0:00,Engage Strategies Llc,Denver,CO,80202,Advertising,"Postcards
Invoice #201
Check #1012"
396,Bd. Ed. District 07,"Esser, Karla",Democratic,1500.0,9/8/20 0:00,Engage Strategies Llc,Denver,CO,80202,Consultant & Professional Services,"Check #1014 Invoice #201
Campaign Consulting"
397,Bd. Ed. District 07,"Esser, Karla",Democratic,694.72,9/8/20 0:00,Engage Strategies Llc,Denver,CO,80202,Advertising,"Check #1014 Invoice #201
Yard Signs And Stakes"
405,Bd. Ed. District 07,"Esser, Karla",Democratic,2250.0,10/1/20 0:00,Engage Strategies Llc,Denver,CO,80202,Consultant & Professional Services,"Campaign Consulting
Invoice #204
Check #1016"
412,Bd. Ed. District 07,"Esser, Karla",Democratic,7000.0,10/7/20 0:00,Engage Strategies Llc,Denver,CO,80202,Advertising,"Digital Targeting
Invoice #204
Check #1018"
413,Bd. Ed. District 07,"Esser, Karla",Democratic,466.66,10/7/20 0:00,Engage Strategies Llc,Denver,CO,80202,Advertising,"Walk-Piece Flyer
Invoice #204
Check #1018"
418,Bd. Ed. District 07,"Esser, Karla",Democratic,2100.0,10/21/20 0:00,Engage Strategies Llc,Denver,CO,80202,Advertising,"Digital Targeting
Invoice #213
Check #1017"
425,Bd. Ed. District 07,"Esser, Karla",Democratic,1000.0,11/7/20 0:00,Engage Strategies Llc,Denver,CO,80202,Consultant & Professional Services,Check #1020
627,CU Regent District 02,"Gross, David",Democratic,1500.0,1/5/20 0:00,Chris  Nicholson,Denver,CO,80202,Consultant & Professional Services,
641,CU Regent District 02,"Gross, David",Democratic,1500.0,2/6/20 0:00,Chris  Nicholson,Denver,CO,80202,Consultant & Professional Services,
659,CU Regent District 02,"Gross, David",Democratic,1500.0,3/16/20 0:00,Chris  Nicholson,Denver,CO,80202,Consultant & Professional Services,
665,CU Regent District 02,"Gross, David",Democratic,2250.0,4/2/20 0:00,Chris  Nicholson,Denver,CO,80202,Consultant & Professional Services,
672,CU Regent District 02,"Gross, David",Democratic,2250.0,5/6/20 0:00,Chris  Nicholson,Denver,CO,80202,Consultant & Professional Services,
687,CU Regent District 02,"Gross, David",Democratic,2250.0,6/1/20 0:00,Chris  Nicholson,Denver,CO,80202,Consultant & Professional Services,
737,CU Regent District 02,"Gross, David",Democratic,4720.0,7/2/20 0:00,Chris  Nicholson,Denver,CO,80202,Consultant & Professional Services,
793,CU Regent District 02,"Harber, Aaron",Democratic,26348.0,6/19/20 0:00,Effect Tv,Denver,CO,80202,Advertising,Advertising
825,CU Regent District 06,"Spiegel, Ilana",Democratic,3000.0,7/25/19 0:00,Engage Strategies Llc,Denver,CO,80202,Consultant & Professional Services,
830,CU Regent District 06,"Spiegel, Ilana",Democratic,1700.0,9/13/19 0:00,Engage Strategies Llc,Denver,CO,80202,Consultant & Professional Services,
833,CU Regent District 06,"Spiegel, Ilana",Democratic,3451.43,1/10/20 0:00,Engage Strategies Llc,Denver,CO,80202,Consultant & Professional Services,
836,CU Regent District 06,"Spiegel, Ilana",Democratic,3822.5,2/6/20 0:00,Engage Strategies Llc,Denver,CO,80202,Consultant & Professional Services,
839,CU Regent District 06,"Spiegel, Ilana",Democratic,2160.55,3/2/20 0:00,Engage Strategies Llc,Denver,CO,80202,Consultant & Professional Services,
841,CU Regent District 06,"Spiegel, Ilana",Democratic,1518.99,4/1/20 0:00,Engage Strategies Llc,Denver,CO,80202,Consultant & Professional Services,
846,CU Regent District 06,"Spiegel, Ilana",Democratic,1500.0,5/1/20 0:00,Engage Strategies Llc,Denver,CO,80202,Consultant & Professional Services,
856,CU Regent District 06,"Spiegel, Ilana",Democratic,1500.0,6/15/20 0:00,Engage Strategies Llc,Denver,CO,80202,Consultant & Professional Services,
862,CU Regent District 06,"Spiegel, Ilana",Democratic,2500.0,7/18/20 0:00,Engage Strategies Llc,Denver,CO,80202,Consultant & Professional Services,
867,CU Regent District 06,"Spiegel, Ilana",Democratic,5428.88,8/19/20 0:00,Engage Strategies Llc,Denver,CO,80202,Consultant & Professional Services,
909,CU Regent District 06,"Spiegel, Ilana",Democratic,1500.0,11/18/19 0:00,Engage Strategies Llc,Denver,CO,80202,Consultant & Professional Services,
910,CU Regent District 06,"Spiegel, Ilana",Democratic,1500.0,11/18/19 0:00,Engage Strategies Llc,Denver,CO,80202,Consultant & Professional Services,
940,CU Regent District 06,"Murray, Richard",Republican,248.57,2/28/20 0:00,Office Depot,Denver,CO,80202,Other,6614 ∑ Flyers
1155,CU Regent District 06,"Rahn, Priscilla",Republican,1347.25,6/1/20 0:00,Effectv East,Denver,CO,80202,Other,6111 ∑ Time Buys
30,Bd. Ed. District 01,"Escarcega, Lisa",Democratic,21.12,6/15/20 0:00,Colorado Democratic Party,Denver,CO,80203,Other,Campaign Texts
60,Bd. Ed. District 01,"Escarcega, Lisa",Democratic,500.0,10/25/19 0:00,Colorado Democratic Party,Denver,CO,80203,Other,Van Access
81,Bd. Ed. District 01,"Morganstern, Donna",Democratic,500.0,1/23/20 0:00,Colorado Democratic Party,Denver,CO,80203,Other,Access To Van
142,Bd. Ed. District 01,"Morganstern, Donna",Democratic,4395.48,7/31/20 0:00,Colorado Democratic Party Political Committee,Denver,CO,80203,Advertising,Colorado Democratic Party Email Addresses For Texting Purposes.
195,Bd. Ed. District 03,"Simpson, Mayling",Democratic,150.0,6/18/20 0:00,Colorado Democratic Party,Denver,CO,80203,Miscellaneous,Fee To Attend Colorado Democratic Political Event
210,Bd. Ed. District 03,"Simpson, Mayling",Democratic,500.0,7/20/20 0:00,Colorado Democratic Party,Denver,CO,80203,Other,Van Voter List
214,Bd. Ed. District 03,"Simpson, Mayling",Democratic,500.0,8/4/20 0:00,"Steele Strategies, Llc",Denver,CO,80203,Consultant & Professional Services,Nathan Steele July Campaign Management
221,Bd. Ed. District 03,"Simpson, Mayling",Democratic,1000.0,8/31/20 0:00,"Steele Strategies, Llc",Denver,CO,80203,Consultant & Professional Services,
234,Bd. Ed. District 03,"Simpson, Mayling",Democratic,1500.0,9/25/20 0:00,Colorado Democratic Party,Denver,CO,80203,Advertising,
237,Bd. Ed. District 03,"Simpson, Mayling",Democratic,2500.0,9/28/20 0:00,"Steele Strategies, Llc",Denver,CO,80203,Advertising,Yard Signs Production And Delivery
238,Bd. Ed. District 03,"Simpson, Mayling",Democratic,1000.0,9/28/20 0:00,"Steele Strategies, Llc",Denver,CO,80203,Consultant & Professional Services,
273,Bd. Ed. District 03,"Simpson, Mayling",Democratic,1250.0,10/28/20 0:00,"Steele Strategies, Llc",Denver,CO,80203,Consultant & Professional Services,
342,Bd. Ed. District 07,"Esser, Karla",Democratic,500.0,9/30/19 0:00,Colorado Democratic Party,Denver,CO,80203,Other,Voter File Access At Fair Market Value Paid To The Cdp Federal Account
408,Bd. Ed. District 07,"Esser, Karla",Democratic,1500.0,10/3/20 0:00,Colorado Democratic Party,Denver,CO,80203,Advertising,"Check #1017
Coordinated Slate Advertising Buy-In"
464,CU Regent  District 02,"Rennison, Callie",Democratic,500.0,1/28/20 0:00,Colorado Democratic Party,Denver,CO,80203,Advertising,
465,CU Regent  District 02,"Rennison, Callie",Democratic,4500.0,1/28/20 0:00,Colorado Democratic Party,Denver,CO,80203,Advertising,
614,CU Regent District 02,"Gross, David",Democratic,2800.0,8/28/19 0:00,Civic Centered Consulting,Denver,CO,80203,Consultant & Professional Services,Campaign Consulting
633,CU Regent District 02,"Gross, David",Democratic,2300.0,1/21/20 0:00,Civic Centered Consulting,Denver,CO,80203,Consultant & Professional Services,
637,CU Regent District 02,"Gross, David",Democratic,1060.0,1/27/20 0:00,Tierney Lawrence,Denver,CO,80203,Consultant & Professional Services,Legal Services
646,CU Regent District 02,"Gross, David",Democratic,2300.0,2/18/20 0:00,Civic Centered Consulting,Denver,CO,80203,Consultant & Professional Services,
660,CU Regent District 02,"Gross, David",Democratic,2300.0,3/23/20 0:00,Civic Centered Consulting,Denver,CO,80203,Consultant & Professional Services,
666,CU Regent District 02,"Gross, David",Democratic,2300.0,4/16/20 0:00,Civic Centered Consulting,Denver,CO,80203,Consultant & Professional Services,
678,CU Regent District 02,"Gross, David",Democratic,2300.0,5/22/20 0:00,Civic Centered Consulting,Denver,CO,80203,Consultant & Professional Services,
735,CU Regent District 02,"Gross, David",Democratic,2300.0,7/1/20 0:00,Civic Centered Consulting,Denver,CO,80203,Consultant & Professional Services,
743,CU Regent District 02,"Gross, David",Democratic,2800.0,10/1/19 0:00,Civic Centered Consulting,Denver,CO,80203,Consultant & Professional Services,
749,CU Regent District 02,"Gross, David",Democratic,500.0,10/22/19 0:00,Colorado Democratic Party,Denver,CO,80203,Other,Van Access
751,CU Regent District 02,"Gross, David",Democratic,2800.0,10/31/19 0:00,Civic Centered Consulting,Denver,CO,80203,Consultant & Professional Services,
759,CU Regent District 02,"Gross, David",Democratic,2800.0,12/3/19 0:00,Civic Centered Consulting,Denver,CO,80203,Consultant & Professional Services,
765,CU Regent District 02,"Gross, David",Democratic,2800.0,12/17/19 0:00,Civic Centered Consulting,Denver,CO,80203,Consultant & Professional Services,
770,CU Regent District 02,"Harber, Aaron",Democratic,500.0,1/1/20 0:00,Colorado Democratic Party,Denver,CO,80203,Other,Van Fee
891,CU Regent District 06,"Spiegel, Ilana",Democratic,1500.0,10/9/20 0:00,Colorado Democratic Party,Denver,CO,80203,Advertising,
65,Bd. Ed. District 01,"Escarcega, Lisa",Democratic,500.0,11/22/19 0:00,"White River Strategies, Llc",Denver,CO,80204,Consultant & Professional Services,Campaign Services
126,Bd. Ed. District 01,"Morganstern, Donna",Democratic,20.0,6/3/20 0:00,Manager Of Finance,Denver,CO,80204,Office Equipment & Supplies,Map Of Precincts.
176,Bd. Ed. District 01,"Laddison, Zachary",Approval Voting Party,0.6,3/10/20 0:00,Denver Central Library,Denver,CO,80204,Miscellaneous,Paid Denver Central Library For Printer Use.
769,CU Regent District 02,"Harber, Aaron",Democratic,5000.0,1/1/20 0:00,Effct Llc,Denver,CO,80204,Consultant & Professional Services,Social Media
771,CU Regent District 02,"Harber, Aaron",Democratic,5000.0,1/15/20 0:00,Effct Llc,Denver,CO,80204,Consultant & Professional Services,Social Media
773,CU Regent District 02,"Harber, Aaron",Democratic,5000.0,2/1/20 0:00,Effct Llc,Denver,CO,80204,Consultant & Professional Services,Social Media
776,CU Regent District 02,"Harber, Aaron",Democratic,5000.0,3/1/20 0:00,Effct Llc,Denver,CO,80204,Consultant & Professional Services,Social Media
780,CU Regent District 02,"Harber, Aaron",Democratic,5000.0,4/1/20 0:00,Effct Llc,Denver,CO,80204,Consultant & Professional Services,Social Media
783,CU Regent District 02,"Harber, Aaron",Democratic,5000.0,5/1/20 0:00,Effct Llc,Denver,CO,80204,Consultant & Professional Services,Social Media
788,CU Regent District 02,"Harber, Aaron",Democratic,5000.0,5/28/20 0:00,Effct Llc,Denver,CO,80204,Consultant & Professional Services,
796,CU Regent District 02,"Harber, Aaron",Democratic,3429.2,6/22/20 0:00,Effct Llc,Denver,CO,80204,Advertising,Broadcast Media
797,CU Regent District 02,"Harber, Aaron",Democratic,8487.16,6/22/20 0:00,Egan Printing,Denver,CO,80204,Advertising,Direct Mail
800,CU Regent District 02,"Harber, Aaron",Democratic,21427.95,6/24/20 0:00,Effct Llc,Denver,CO,80204,Advertising,Broadcast Television
802,CU Regent District 02,"Harber, Aaron",Democratic,12500.0,6/26/20 0:00,Effct Llc,Denver,CO,80204,Advertising,Advertising
804,CU Regent District 02,"Harber, Aaron",Democratic,4230.0,7/1/20 0:00,Effct Llc,Denver,CO,80204,Advertising,Social Media And Tax
806,CU Regent District 02,"Harber, Aaron",Democratic,6883.29,8/6/20 0:00,Egan Printing,Denver,CO,80204,Advertising,Mailing
13,Bd. Ed. District 01,"Escarcega, Lisa",Democratic,60.0,4/8/20 0:00,Tay  Anderson,Denver,CO,80205,Consultant & Professional Services,
814,CU Regent District 06,"Spiegel, Ilana",Democratic,370.0,5/11/19 0:00,The Growth Engine,Denver,CO,80206,Consultant & Professional Services,Web Site
870,CU Regent District 06,"Spiegel, Ilana",Democratic,2250.0,9/3/20 0:00,Five Star Campaigns,Denver,CO,80206,Consultant & Professional Services,
889,CU Regent District 06,"Spiegel, Ilana",Democratic,1216.0,10/9/20 0:00,Five Star Campaigns,Denver,CO,80206,Consultant & Professional Services,Phone Bank Services
890,CU Regent District 06,"Spiegel, Ilana",Democratic,2250.0,10/9/20 0:00,Five Star Campaigns,Denver,CO,80206,Consultant & Professional Services,Gotv
905,CU Regent District 06,"Spiegel, Ilana",Democratic,2250.0,11/9/20 0:00,Five Star Campaigns,Denver,CO,80206,Consultant & Professional Services,
1185,CU Regent District 06,"Rahn, Priscilla",Republican,72.8,12/18/19 0:00,Little Ollies Asian Grill,Denver,CO,80206,Other,6890 ∑ Other Meeting Expense
70,Bd. Ed. District 01,"Morganstern, Donna",Democratic,700.0,1/2/20 0:00,Blair  Taylor,Denver,CO,80207,Consultant & Professional Services,Campaign Management
72,Bd. Ed. District 01,"Morganstern, Donna",Democratic,700.0,1/10/20 0:00,Blair  Taylor,Denver,CO,80207,Consultant & Professional Services,Campaign Management
76,Bd. Ed. District 01,"Morganstern, Donna",Democratic,700.0,1/16/20 0:00,Blair  Taylor,Denver,CO,80207,Consultant & Professional Services,Marketing Research And Strategy
82,Bd. Ed. District 01,"Morganstern, Donna",Democratic,700.0,1/24/20 0:00,Blair  Taylor,Denver,CO,80207,Consultant & Professional Services,"Marketing, Research, And Strategy"
87,Bd. Ed. District 01,"Morganstern, Donna",Democratic,700.0,1/31/20 0:00,Blair  Taylor,Denver,CO,80207,Consultant & Professional Services,Campaign Management
88,Bd. Ed. District 01,"Morganstern, Donna",Democratic,700.0,2/6/20 0:00,Blair  Taylor,Denver,CO,80207,Consultant & Professional Services,Campaign Management
93,Bd. Ed. District 01,"Morganstern, Donna",Democratic,1400.0,2/20/20 0:00,Blair  Taylor,Denver,CO,80207,Consultant & Professional Services,Campaign Management (2 Weeks)
96,Bd. Ed. District 01,"Morganstern, Donna",Democratic,700.0,2/27/20 0:00,Blair  Taylor,Denver,CO,80207,Consultant & Professional Services,Campaign Management
101,Bd. Ed. District 01,"Morganstern, Donna",Democratic,700.0,3/8/20 0:00,Blair  Taylor,Denver,CO,80207,Consultant & Professional Services,Campaign Management
105,Bd. Ed. District 01,"Morganstern, Donna",Democratic,700.0,3/12/20 0:00,Blair  Taylor,Denver,CO,80207,Consultant & Professional Services,Campaign Management
108,Bd. Ed. District 01,"Morganstern, Donna",Democratic,700.0,3/19/20 0:00,Blair  Taylor,Denver,CO,80207,Consultant & Professional Services,Campaign Management
109,Bd. Ed. District 01,"Morganstern, Donna",Democratic,700.0,3/27/20 0:00,Blair  Taylor,Denver,CO,80207,Consultant & Professional Services,Campaign Management
110,Bd. Ed. District 01,"Morganstern, Donna",Democratic,700.0,4/4/20 0:00,Blair  Taylor,Denver,CO,80207,Consultant & Professional Services,Campaign Management
113,Bd. Ed. District 01,"Morganstern, Donna",Democratic,700.0,4/10/20 0:00,Blair  Taylor,Denver,CO,80207,Consultant & Professional Services,Campaign Management
115,Bd. Ed. District 01,"Morganstern, Donna",Democratic,700.0,4/21/20 0:00,Blair  Taylor,Denver,CO,80207,Consultant & Professional Services,Campaign Management
116,Bd. Ed. District 01,"Morganstern, Donna",Democratic,700.0,4/23/20 0:00,Blair  Taylor,Denver,CO,80207,Consultant & Professional Services,Campaign Management
118,Bd. Ed. District 01,"Morganstern, Donna",Democratic,700.0,5/4/20 0:00,Blair  Taylor,Denver,CO,80207,Consultant & Professional Services,Campaign Management
119,Bd. Ed. District 01,"Morganstern, Donna",Democratic,700.0,5/8/20 0:00,Blair  Taylor,Denver,CO,80207,Consultant & Professional Services,Campaign Management
121,Bd. Ed. District 01,"Morganstern, Donna",Democratic,700.0,5/14/20 0:00,Blair  Taylor,Denver,CO,80207,Consultant & Professional Services,Campaign Management
122,Bd. Ed. District 01,"Morganstern, Donna",Democratic,700.0,5/21/20 0:00,Blair  Taylor,Denver,CO,80207,Consultant & Professional Services,Campaign Management
125,Bd. Ed. District 01,"Morganstern, Donna",Democratic,700.0,5/28/20 0:00,Blair  Taylor,Denver,CO,80207,Consultant & Professional Services,Campaign Management
127,Bd. Ed. District 01,"Morganstern, Donna",Democratic,700.0,6/4/20 0:00,Blair  Taylor,Denver,CO,80207,Consultant & Professional Services,Campaign Management
130,Bd. Ed. District 01,"Morganstern, Donna",Democratic,700.0,6/11/20 0:00,Blair  Taylor,Denver,CO,80207,Consultant & Professional Services,Campaign Management
135,Bd. Ed. District 01,"Morganstern, Donna",Democratic,700.0,6/22/20 0:00,Blair  Taylor,Denver,CO,80207,Consultant & Professional Services,Campaign Management
138,Bd. Ed. District 01,"Morganstern, Donna",Democratic,700.0,6/26/20 0:00,Blair  Taylor,Denver,CO,80207,Consultant & Professional Services,Campaign Management
141,Bd. Ed. District 01,"Morganstern, Donna",Democratic,700.0,6/30/20 0:00,Blair  Taylor,Denver,CO,80207,Consultant & Professional Services,Campaign Management
143,Bd. Ed. District 01,"Morganstern, Donna",Democratic,700.0,10/2/19 0:00,Blair  Taylor,Denver,CO,80207,Consultant & Professional Services,Campaign Management
144,Bd. Ed. District 01,"Morganstern, Donna",Democratic,106.0,10/2/19 0:00,Us Postal Service,Denver,CO,80207,Office Equipment & Supplies,P.O. Box  Rental For Campaign
145,Bd. Ed. District 01,"Morganstern, Donna",Democratic,700.0,10/3/19 0:00,Blair  Taylor,Denver,CO,80207,Consultant & Professional Services,Campaign Management
147,Bd. Ed. District 01,"Morganstern, Donna",Democratic,700.0,10/11/19 0:00,Blair  Taylor,Denver,CO,80207,Consultant & Professional Services,Campaign Management
148,Bd. Ed. District 01,"Morganstern, Donna",Democratic,700.0,10/20/19 0:00,Blair  Taylor,Denver,CO,80207,Consultant & Professional Services,Campaign Management
149,Bd. Ed. District 01,"Morganstern, Donna",Democratic,700.0,10/26/19 0:00,Blair  Taylor,Denver,CO,80207,Consultant & Professional Services,Campaign Management
151,Bd. Ed. District 01,"Morganstern, Donna",Democratic,700.0,11/4/19 0:00,Blair  Taylor,Denver,CO,80207,Consultant & Professional Services,Campaign Management
152,Bd. Ed. District 01,"Morganstern, Donna",Democratic,700.0,11/8/19 0:00,Blair  Taylor,Denver,CO,80207,Consultant & Professional Services,Campaign Management
153,Bd. Ed. District 01,"Morganstern, Donna",Democratic,32.88,11/8/19 0:00,Blair  Taylor,Denver,CO,80207,Office Equipment & Supplies,Reimbursement For Name Tag Order
154,Bd. Ed. District 01,"Morganstern, Donna",Democratic,700.0,11/18/19 0:00,Blair  Taylor,Denver,CO,80207,Consultant & Professional Services,Campaign Management
155,Bd. Ed. District 01,"Morganstern, Donna",Democratic,10.0,11/18/19 0:00,Blair  Taylor,Denver,CO,80207,Office Equipment & Supplies,Reimbursement For 2020 Planning Calendar.
156,Bd. Ed. District 01,"Morganstern, Donna",Democratic,700.0,12/3/19 0:00,Blair  Taylor,Denver,CO,80207,Consultant & Professional Services,Campaign Management
157,Bd. Ed. District 01,"Morganstern, Donna",Democratic,700.0,12/3/19 0:00,Blair  Taylor,Denver,CO,80207,Consultant & Professional Services,Campaign Management
159,Bd. Ed. District 01,"Morganstern, Donna",Democratic,700.0,12/16/19 0:00,Blair  Taylor,Denver,CO,80207,Consultant & Professional Services,Campaign Management
160,Bd. Ed. District 01,"Morganstern, Donna",Democratic,94.23,12/16/19 0:00,Blair  Taylor,Denver,CO,80207,Advertising,Reimbursement For Flyers Printed By Office Depot.
161,Bd. Ed. District 01,"Morganstern, Donna",Democratic,700.0,12/16/19 0:00,Blair  Taylor,Denver,CO,80207,Consultant & Professional Services,Campaign Management
163,Bd. Ed. District 01,"Morganstern, Donna",Democratic,700.0,12/21/19 0:00,Blair  Taylor,Denver,CO,80207,Consultant & Professional Services,Campaign Management
166,Bd. Ed. District 01,"Morganstern, Donna",Democratic,700.0,12/30/19 0:00,Blair  Taylor,Denver,CO,80207,Consultant & Professional Services,Campaign Management
486,CU Regent  District 02,"Rennison, Callie",Democratic,2000.0,3/17/20 0:00,Heart Mind Media,Denver,CO,80207,Fundraising Expenses,
507,CU Regent  District 02,"Rennison, Callie",Democratic,1000.0,5/26/20 0:00,Heart Mind Media,Denver,CO,80207,Consultant & Professional Services,
75,Bd. Ed. District 01,"Morganstern, Donna",Democratic,100.0,1/15/20 0:00,Denver Democratic Central Committee,Denver,CO,80209,Advertising,Table Rental At The Central Committee Meeting On 1/25/2020
813,CU Regent District 06,"Spiegel, Ilana",Democratic,278.26,5/6/19 0:00,Gamino Printing,Denver,CO,80209,Other,Bre Skip
171,Bd. Ed. District 01,"Wulff, Sydnnia",Republican,15.5,10/8/20 0:00,United States Postal Services,Denver,CO,80210,Miscellaneous,"Postage Fee For Express Mail To Secretary Of State For Statewide Registered Voter List
Prepaid Self Addressed Envelope Included 
Check #1001 Dated 10/8/2020"
4,Bd. Ed. District 01,"Escarcega, Lisa",Democratic,1055.99,1/27/20 0:00,"C&D Printing, Inc",Denver,CO,80212,Other,Printing Services For Campaign Materials
14,Bd. Ed. District 01,"Escarcega, Lisa",Democratic,20.0,4/13/20 0:00,"C&D Printing, Inc",Denver,CO,80212,Other,Printing Services For Campaign Materials
16,Bd. Ed. District 01,"Escarcega, Lisa",Democratic,1643.53,4/27/20 0:00,"C&D Printing, Inc",Denver,CO,80212,Other,Printing Services
59,Bd. Ed. District 01,"Escarcega, Lisa",Democratic,78.56,10/23/19 0:00,"C&D Printing, Inc",Denver,CO,80212,Other,Printing Services
64,Bd. Ed. District 01,"Escarcega, Lisa",Democratic,552.03,11/18/19 0:00,"C&D Printing, Inc",Denver,CO,80212,Other,Printing Brochures For Face-To-Face Distribution
74,Bd. Ed. District 01,"Morganstern, Donna",Democratic,188.55,1/14/20 0:00,"C & D Printing, Inc.",Denver,CO,80212,Fundraising Expenses,Contribution Envelopes
78,Bd. Ed. District 01,"Morganstern, Donna",Democratic,185.41,1/21/20 0:00,"C & D Printing, Inc.",Denver,CO,80212,Advertising,Postcards
80,Bd. Ed. District 01,"Morganstern, Donna",Democratic,99.51,1/22/20 0:00,C&D Printing,Denver,CO,80212,Advertising,Poster - 36X48 - Priorities
86,Bd. Ed. District 01,"Morganstern, Donna",Democratic,348.82,1/28/20 0:00,"C & D Printing, Inc.",Denver,CO,80212,Advertising,"Banner And Button
S"
89,Bd. Ed. District 01,"Morganstern, Donna",Democratic,343.59,2/6/20 0:00,C&D Printing,Denver,CO,80212,Advertising,"Business Cards For Donna, Pamphlets For Walking And General Distribution"
98,Bd. Ed. District 01,"Morganstern, Donna",Democratic,247.21,3/2/20 0:00,"C & D Printing, Inc.",Denver,CO,80212,Advertising,Signs
103,Bd. Ed. District 01,"Morganstern, Donna",Democratic,443.09,3/9/20 0:00,C&D Printing,Denver,CO,80212,Advertising,Pamphlet Walk Pieces
128,Bd. Ed. District 01,"Morganstern, Donna",Democratic,372.91,6/9/20 0:00,C&D Printing,Denver,CO,80212,Advertising,Campaign Walking Pamphlets (1500)
129,Bd. Ed. District 01,"Morganstern, Donna",Democratic,6135.06,6/9/20 0:00,C&D Printing,Denver,CO,80212,Advertising,Campaign Postcards (With Postage) To Be Mailed Directly To Voters.
133,Bd. Ed. District 01,"Morganstern, Donna",Democratic,7483.17,6/16/20 0:00,C&D Printing,Denver,CO,80212,Advertising,Postcards
136,Bd. Ed. District 01,"Morganstern, Donna",Democratic,7203.06,6/24/20 0:00,C&D Printing,Denver,CO,80212,Advertising,Postcard Mailing.
150,Bd. Ed. District 01,"Morganstern, Donna",Democratic,52.38,10/28/19 0:00,"C & D Printing, Inc.",Denver,CO,80212,Advertising,Business Cards
162,Bd. Ed. District 01,"Morganstern, Donna",Democratic,270.26,12/16/19 0:00,"C & D Printing, Inc.",Denver,CO,80212,Advertising,Flyers For Walking
411,Bd. Ed. District 07,"Esser, Karla",Democratic,244.07,10/7/19 0:00,C&D Printing,Denver,CO,80212,Advertising,Campaign Flyers
419,Bd. Ed. District 07,"Esser, Karla",Democratic,89.04,10/23/19 0:00,C&D Printing,Denver,CO,80212,Advertising,Business Cards
427,Bd. Ed. District 07,"Esser, Karla",Democratic,552.03,11/13/19 0:00,C&D Printing,Denver,CO,80212,Fundraising Expenses,Brochures And Envelopes
470,CU Regent  District 02,"Rennison, Callie",Democratic,1138.73,2/17/20 0:00,C & D Printing And Mailing,Denver,CO,80212,Fundraising Expenses,
474,CU Regent  District 02,"Rennison, Callie",Democratic,2250.0,3/3/20 0:00,C & D Printing And Mailing,Denver,CO,80212,Fundraising Expenses,Assembly Handouts
477,CU Regent  District 02,"Rennison, Callie",Democratic,517.56,3/9/20 0:00,C & D Printing And Mailing,Denver,CO,80212,Fundraising Expenses,Rally Signs
478,CU Regent  District 02,"Rennison, Callie",Democratic,336.35,3/12/20 0:00,C & D Printing And Mailing,Denver,CO,80212,Fundraising Expenses,Post Cards
487,CU Regent  District 02,"Rennison, Callie",Democratic,1119.79,3/18/20 0:00,C & D Printing And Mailing,Denver,CO,80212,Fundraising Expenses,
634,CU Regent District 02,"Gross, David",Democratic,5334.0,1/22/20 0:00,Ground Organizing For Latinos,Denver,CO,80212,Consultant & Professional Services,Signature Gathering
656,CU Regent District 02,"Gross, David",Democratic,7114.8,3/10/20 0:00,Ground Organizing For Latinos,Denver,CO,80212,Consultant & Professional Services,Signature Gathering
661,CU Regent District 02,"Gross, David",Democratic,650.0,3/23/20 0:00,Sw Digital,Denver,CO,80212,Consultant & Professional Services,Video Production
691,CU Regent District 02,"Gross, David",Democratic,1650.0,6/3/20 0:00,Sw Digital,Denver,CO,80212,Consultant & Professional Services,Video Production
698,CU Regent District 02,"Gross, David",Democratic,350.0,6/10/20 0:00,Sw Digital,Denver,CO,80212,Consultant & Professional Services,Video Production
761,CU Regent District 02,"Gross, David",Democratic,500.0,12/3/19 0:00,Chris  Nicholsan,Denver,CO,80212,Consultant & Professional Services,
818,CU Regent District 06,"Spiegel, Ilana",Democratic,340.44,6/17/19 0:00,C And D Printing,Denver,CO,80212,Advertising,Printing
823,CU Regent District 06,"Spiegel, Ilana",Democratic,208.55,7/15/19 0:00,C And D Printing,Denver,CO,80212,Advertising,Printing
824,CU Regent District 06,"Spiegel, Ilana",Democratic,268.16,7/15/19 0:00,C And D Printing,Denver,CO,80212,Advertising,Printing
899,CU Regent District 06,"Spiegel, Ilana",Democratic,1290.52,10/23/20 0:00,C And D Printing,Denver,CO,80212,Advertising,Printing
49,Bd. Ed. District 01,"Escarcega, Lisa",Democratic,4.0,8/31/20 0:00,Firstbank,Lakewood,CO,80215,Bank Fees,Bank Card Fee
55,Bd. Ed. District 01,"Escarcega, Lisa",Democratic,4.0,9/30/20 0:00,Firstbank,Lakewood,CO,80215,Bank Fees,Bank Account Fees
62,Bd. Ed. District 01,"Escarcega, Lisa",Democratic,4.0,10/30/20 0:00,Firstbank,Lakewood,CO,80215,Bank Fees,Bank Account Fee
68,Bd. Ed. District 01,"Escarcega, Lisa",Democratic,4.0,11/30/20 0:00,Firstbank,Lakewood,CO,80215,Bank Fees,Bank Account Fee
178,Bd. Ed. District 03,"Simpson, Mayling",Democratic,11.2,3/11/20 0:00,Jefferson Co Democratic Party: Multi Purpose,Lakewood,CO,80215,Fundraising Expenses,Purchased Mailing List
179,Bd. Ed. District 03,"Simpson, Mayling",Democratic,-11.2,3/11/20 0:00,Jefferson Co Democratic Party: Multi Purpose,Lakewood,CO,80215,Fundraising Expenses,Offset Due To Deletion Of Filed Item - Purchased Mailing List
394,Bd. Ed. District 07,"Esser, Karla",Democratic,4.0,8/27/20 0:00,1St Bank,Lakewood,CO,80215,Bank Fees,Fee For 2 Visa Atm Cards
402,Bd. Ed. District 07,"Esser, Karla",Democratic,4.0,9/29/20 0:00,1St Bank,Lakewood,CO,80215,Bank Fees,Monthly Fee For 2 Visa Atm Cards
422,Bd. Ed. District 07,"Esser, Karla",Democratic,4.0,10/29/20 0:00,1St Bank,Lakewood,CO,80215,Bank Fees,Monthly Fee For 2 Visa Atm Cards
430,Bd. Ed. District 07,"Esser, Karla",Democratic,2.0,11/28/20 0:00,1St Bank,Lakewood,CO,80215,Bank Fees,Monthly Fee For Visa Atm Card
815,CU Regent District 06,"Spiegel, Ilana",Democratic,18.95,5/29/19 0:00,1St Bank,Lakewood,CO,80215,Bank Fees,Check Order
440,Bd. Ed. District 07,"Pallozzi, Nancy",Republican,1957.38,8/31/20 0:00,"Vision Graphics, Inc",Denver,CO,80216,Advertising,Brochures
446,Bd. Ed. District 07,"Pallozzi, Nancy",Republican,128.05,10/25/20 0:00,"Vision Graphics, Inc",Denver,CO,80216,Consultant & Professional Services,
32,Bd. Ed. District 01,"Escarcega, Lisa",Democratic,490.0,6/22/20 0:00,United States Post Office,Denver,CO,80217,Miscellaneous,Postage Stamps
112,Bd. Ed. District 01,"Morganstern, Donna",Democratic,21.0,4/6/20 0:00,Usps,Denver,CO,80218,Office Equipment & Supplies,Postage For Thank You Postcards.
114,Bd. Ed. District 01,"Morganstern, Donna",Democratic,105.0,4/10/20 0:00,Usps,Denver,CO,80218,Office Equipment & Supplies,Postage For Thank You Postcards
123,Bd. Ed. District 01,"Morganstern, Donna",Democratic,35.0,5/27/20 0:00,Usps,Denver,CO,80218,Advertising,Postage For Thank You Postcards.
124,Bd. Ed. District 01,"Morganstern, Donna",Democratic,5.32,5/27/20 0:00,Usps,Denver,CO,80218,Advertising,"Postage For Thank You Postcards.
Campaign Committee Debit Card Used."
589,CU Regent  District 02,"Rennison, Callie",Democratic,435.0,11/3/19 0:00,Colin  Hornbsy,Denver,CO,80218,Fundraising Expenses,
599,CU Regent  District 02,"Rennison, Callie",Democratic,1500.0,11/29/19 0:00,Colin  Hornbsy,Denver,CO,80218,Fundraising Expenses,
849,CU Regent District 06,"Spiegel, Ilana",Democratic,100.0,5/12/20 0:00,The Center On Colfax,Denver,CO,80218,Advertising,
79,Bd. Ed. District 01,"Morganstern, Donna",Democratic,93.14,1/21/20 0:00,Office Depot,Denver,CO,80220,Office Equipment & Supplies,Copying For Petition
83,Bd. Ed. District 01,"Morganstern, Donna",Democratic,31.66,1/25/20 0:00,Office Depot,Denver,CO,80220,Other,Clipboards And Heavy Stock Paper For Signature Collection.
85,Bd. Ed. District 01,"Morganstern, Donna",Democratic,11.34,1/27/20 0:00,Office Depot,Denver,CO,80220,Other,Clipboards For Signature Collection.
99,Bd. Ed. District 01,"Morganstern, Donna",Democratic,43.07,3/3/20 0:00,Office Depot,Denver,CO,80220,Office Equipment & Supplies,Copying For Signature Petitions
618,CU Regent District 02,"Gross, David",Democratic,250.0,9/4/19 0:00,Evan Semon Photography,Denver,CO,80220,Consultant & Professional Services,Campaign Photos
657,CU Regent District 02,"Gross, David",Democratic,350.0,3/13/20 0:00,Evan Semon Photography,Denver,CO,80220,Consultant & Professional Services,
1194,CU Regent District 07,"Chavez, Nolbert",Democratic,80.0,2/1/20 0:00,Jefferson County Dem Party,Denver,CO,80220,"Food, Beverages and Meals",Jefferson County Democrats Italian Dinner
3,Bd. Ed. District 01,"Escarcega, Lisa",Democratic,1000.0,1/9/20 0:00,Kristen  Seidel,Denver,CO,80224,Consultant & Professional Services,
6,Bd. Ed. District 01,"Escarcega, Lisa",Democratic,1500.0,2/7/20 0:00,Kristen  Seidel,Denver,CO,80224,Consultant & Professional Services,
7,Bd. Ed. District 01,"Escarcega, Lisa",Democratic,1500.0,3/2/20 0:00,Kristen  Seidel,Denver,CO,80224,Consultant & Professional Services,
11,Bd. Ed. District 01,"Escarcega, Lisa",Democratic,1560.0,4/3/20 0:00,Kristen  Seidel,Denver,CO,80224,Consultant & Professional Services,
15,Bd. Ed. District 01,"Escarcega, Lisa",Democratic,657.98,4/21/20 0:00,Kristen  Seidel,Denver,CO,80224,Consultant & Professional Services,
18,Bd. Ed. District 01,"Escarcega, Lisa",Democratic,1500.0,5/4/20 0:00,Kristen  Seidel,Denver,CO,80224,Consultant & Professional Services,
24,Bd. Ed. District 01,"Escarcega, Lisa",Democratic,1500.0,6/1/20 0:00,Kristen  Seidel,Denver,CO,80224,Consultant & Professional Services,Consulting Services
39,Bd. Ed. District 01,"Escarcega, Lisa",Democratic,1500.0,7/1/20 0:00,Kristen  Seidel,Denver,CO,80224,Consultant & Professional Services,
47,Bd. Ed. District 01,"Escarcega, Lisa",Democratic,500.0,8/3/20 0:00,Kristen  Seidel,Denver,CO,80224,Consultant & Professional Services,
51,Bd. Ed. District 01,"Escarcega, Lisa",Democratic,500.0,9/4/20 0:00,Kristen  Seidel,Denver,CO,80224,Consultant & Professional Services,
57,Bd. Ed. District 01,"Escarcega, Lisa",Democratic,750.0,10/1/20 0:00,Kristen  Seidel,Denver,CO,80224,Consultant & Professional Services,
63,Bd. Ed. District 01,"Escarcega, Lisa",Democratic,750.0,11/5/20 0:00,Kristen  Seidel,Denver,CO,80224,Consultant & Professional Services,
173,Bd. Ed. District 01,"Wulff, Sydnnia",Republican,60.0,10/13/20 0:00,Nash  Tarachand,Denver,CO,80224,Consultant & Professional Services,"Web Consultant Services To Update Website
Check #1003
Dated 10/13/2020"
175,Bd. Ed. District 01,"Wulff, Sydnnia",Republican,150.0,11/9/20 0:00,Nash Tarachand,Denver,CO,80224,Consultant & Professional Services,Website Update And Fundraising Shut-Off. Inactivating Fundraising Program. Check #1004
353,Bd. Ed. District 07,"Esser, Karla",Democratic,45.0,2/5/20 0:00,Us Postal Service,Lakewood,CO,80226,Office Equipment & Supplies,50 Postcards And 50 Stamps
384,Bd. Ed. District 07,"Esser, Karla",Democratic,140.0,7/27/20 0:00,Us Postal Service,Lakewood,CO,80226,Advertising,400 Postcard Stamps
385,Bd. Ed. District 07,"Esser, Karla",Democratic,210.0,8/4/20 0:00,Us Postal Service,Lakewood,CO,80226,Advertising,600 Postcard Stamps
400,Bd. Ed. District 07,"Esser, Karla",Democratic,700.0,9/18/20 0:00,Us Postal Service,Lakewood,CO,80226,Advertising,2000 Postcard Stamps
407,Bd. Ed. District 07,"Esser, Karla",Democratic,700.0,10/3/20 0:00,Us Postal Service,Lakewood,CO,80226,Advertising,2000 Postcard Stamps
410,Bd. Ed. District 07,"Esser, Karla",Democratic,700.0,10/5/20 0:00,Us Postal Service,Lakewood,CO,80226,Advertising,2000 Postcard Stamps
639,CU Regent District 02,"Gross, David",Democratic,7.51,2/4/20 0:00,4Degrees,Lakewood,CO,80226,Consultant & Professional Services,Email Platform
650,CU Regent District 02,"Gross, David",Democratic,230.0,3/3/20 0:00,4Degrees,Lakewood,CO,80226,Consultant & Professional Services,Facebook Ads
651,CU Regent District 02,"Gross, David",Democratic,2.58,3/3/20 0:00,4Degrees,Lakewood,CO,80226,Consultant & Professional Services,Email Platform
670,CU Regent District 02,"Gross, David",Democratic,362.64,5/5/20 0:00,4Degrees,Lakewood,CO,80226,Advertising,Facebook Ads
674,CU Regent District 02,"Gross, David",Democratic,5.2,5/9/20 0:00,4Degrees,Lakewood,CO,80226,Consultant & Professional Services,Email Platform
685,CU Regent District 02,"Gross, David",Democratic,5578.81,6/1/20 0:00,4Degrees,Lakewood,CO,80226,Advertising,Digital Advertising
696,CU Regent District 02,"Gross, David",Democratic,8000.0,6/8/20 0:00,4Degrees,Lakewood,CO,80226,Advertising,Digital Advertising
704,CU Regent District 02,"Gross, David",Democratic,8000.0,6/15/20 0:00,4Degrees,Lakewood,CO,80226,Advertising,Digital Advertising
709,CU Regent District 02,"Gross, David",Democratic,-8000.0,6/15/20 0:00,4Degrees,Lakewood,CO,80226,Advertising,Offset Due To Update Of Filed Item - Digital Advertising
725,CU Regent District 02,"Gross, David",Democratic,8000.0,6/25/20 0:00,4Degrees,Lakewood,CO,80226,Advertising,Digital Advertising
726,CU Regent District 02,"Gross, David",Democratic,39000.0,6/29/20 0:00,4Degrees,Lakewood,CO,80226,Advertising,Digital Advertising
744,CU Regent District 02,"Gross, David",Democratic,2502.42,10/1/19 0:00,4Degrees,Lakewood,CO,80226,Consultant & Professional Services,Website Development
755,CU Regent District 02,"Gross, David",Democratic,2.45,11/13/19 0:00,4Degrees,Lakewood,CO,80226,Consultant & Professional Services,
344,Bd. Ed. District 07,"Esser, Karla",Democratic,17.15,1/2/20 0:00,Us Postal Service,Denver,CO,80227,Office Equipment & Supplies,40 Postcard Stamps
372,Bd. Ed. District 07,"Esser, Karla",Democratic,70.0,5/8/20 0:00,Us Postal Service,Denver,CO,80227,Advertising,200 Postcard Stamps
341,Bd. Ed. District 07,"Esser, Karla",Democratic,11.0,9/16/19 0:00,Us Postal Service,Lakewood,CO,80228,Office Equipment & Supplies,Postage Stamps
352,Bd. Ed. District 07,"Esser, Karla",Democratic,54.99,2/1/20 0:00,Karla  Esser,Lakewood,CO,80228,"Food, Beverages and Meals","Food And Beverage For Fundraising Event On 2/1/2020
Check #1003
Costco Receipt Available"
364,Bd. Ed. District 07,"Esser, Karla",Democratic,7.15,4/13/20 0:00,Vinzenz  Esser,Lakewood,CO,80228,Office Equipment & Supplies,"Reimbursement For Purchase Of Stamps
Check #1007"
388,Bd. Ed. District 07,"Esser, Karla",Democratic,60.0,8/7/20 0:00,Halcyon Digital,Lakewood,CO,80228,Consultant & Professional Services,Video Editing
401,Bd. Ed. District 07,"Esser, Karla",Democratic,420.0,9/28/20 0:00,Vinzenz  Esser,Lakewood,CO,80228,Advertising,"Electronic Transfer Of Funds
Reimbursement For 1,200 Postcard Stamps
Post Office Receipt # 840-58000063-5-4422216-1"
406,Bd. Ed. District 07,"Esser, Karla",Democratic,6.65,10/2/19 0:00,Us Postal Service,Lakewood,CO,80228,Office Equipment & Supplies,19 Postcard Stamps For Mailing Thank You Cards
409,Bd. Ed. District 07,"Esser, Karla",Democratic,153.4,10/4/20 0:00,Halcyon Digital,Lakewood,CO,80228,Advertising,"Video Editing
Invoice #14573"
416,Bd. Ed. District 07,"Esser, Karla",Democratic,10.5,10/15/19 0:00,Us Postal Service,Lakewood,CO,80228,Office Equipment & Supplies,Stamps For Thank You Cards
428,Bd. Ed. District 07,"Esser, Karla",Democratic,21.5,11/14/19 0:00,Us Postal Service,Lakewood,CO,80228,Office Equipment & Supplies,Postage Stamps
170,Bd. Ed. District 01,"Wulff, Sydnnia",Republican,1058.0,10/8/20 0:00,Barlow Advertising & Design,Denver,CO,80231-3220,Advertising,"Check #1002, Dated 10/8/2020
Creative Service
Printing And Production Services: Biz Cards
Printing And Production Services: Die Cut Door Hangers"
445,Bd. Ed. District 07,"Pallozzi, Nancy",Republican,168.24,10/22/20 0:00,King Soopers,Lakewood,CO,80232,"Food, Beverages and Meals",Food For Volunteers
1196,CU Regent District 07,"Chavez, Nolbert",Democratic,1174.89,2/13/20 0:00,Gamino Printing,Denver,CO,80233,Advertising,
1197,CU Regent District 07,"Chavez, Nolbert",Democratic,229.37,2/29/20 0:00,Gamino Printing,Denver,CO,80233,Advertising,
53,Bd. Ed. District 01,"Escarcega, Lisa",Democratic,400.0,9/14/20 0:00,District 12 Ea Pace,Westminster,CO,80234,Other,Returned A Donation That Was Automatically Received Through Electronic Actblue Donation System And Could Not Be Accepted
1195,CU Regent District 07,"Chavez, Nolbert",Democratic,80.0,2/2/20 0:00,Adams County Democratic Party (A.C.D.C.C),Northglenn,CO,80234,"Food, Beverages and Meals",Adams County Democratís Super Bowl Event
35,Bd. Ed. District 01,"Escarcega, Lisa",Democratic,480.0,6/24/20 0:00,Daniel  Sarche,Denver,CO,80237,Other,Canvasing/Literature Distribution
43,Bd. Ed. District 01,"Escarcega, Lisa",Democratic,90.0,7/6/20 0:00,Daniel  Sarche,Denver,CO,80237,Other,Phone Banking
828,CU Regent District 06,"Spiegel, Ilana",Democratic,400.0,8/28/19 0:00,Insync Photography,Denver,CO,80237,Consultant & Professional Services,
834,CU Regent District 06,"Spiegel, Ilana",Democratic,144.0,1/26/20 0:00,Insync Photography,Denver,CO,80237,Consultant & Professional Services,
275,Bd. Ed. District 03,"Simpson, Mayling",Democratic,500.0,10/29/20 0:00,"Choozle, Inc.",Denver,CO,80238,Advertising,"Unused Funds Returned To Campaign By Choozle, Inc On Nov 3, 2020"
1040,CU Regent District 06,"Murray, Richard",Republican,499.9,9/29/20 0:00,Laird Plastics,Denver,CO,80239,Other,6621 ∑ Yard Signs
169,Bd. Ed. District 01,"Wulff, Sydnnia",Republican,50.0,10/8/20 0:00,Colorado Secretary Of State,Denver,CO,80290,Other,"Check # 1000
Dated 10/8/2020
Colorado Secretary Of State
Elections Division Statewide Registered Voter List"
1198,CU Regent District 07,"Chavez, Nolbert",Democratic,50.0,3/7/20 0:00,Colorado Securtarty Of State,Denver,CO,80290,Miscellaneous,Late Filling Fee Colorado Sec. State. #2020E000072
454,CU Regent  District 02,"Rennison, Callie",Democratic,23.95,9/30/19 0:00,Leisure Time Awards,Boulder,CO,80301,Other,Name Tag
475,CU Regent  District 02,"Rennison, Callie",Democratic,77.66,3/4/20 0:00,Bvsd Community School Program,Boulder,CO,80301,Miscellaneous,To Pay For 1/3 Space For Cd-2 Forum At Broomfield High School
652,CU Regent District 02,"Gross, David",Democratic,77.67,3/3/20 0:00,Bvsd Facility Use,Boulder,CO,80301,Other,Permit
798,CU Regent District 02,"Harber, Aaron",Democratic,3500.0,6/23/20 0:00,Turn It Blue Llc,Boulder,CO,80302,Advertising,Social Media
450,CU Regent  District 02,"Rennison, Callie",Democratic,650.0,9/20/19 0:00,Ampersand Graphic Design,Boulder,CO,80303,Consultant & Professional Services,
459,CU Regent  District 02,"Rennison, Callie",Democratic,33.75,1/7/20 0:00,Ampersand Graphic Design,Boulder,CO,80303,Fundraising Expenses,
489,CU Regent  District 02,"Rennison, Callie",Democratic,306.25,3/20/20 0:00,Ampersand Graphic Design,Boulder,CO,80303,Fundraising Expenses,
516,CU Regent  District 02,"Rennison, Callie",Democratic,438.75,6/3/20 0:00,Ampersand Graphic Design,Boulder,CO,80303,Consultant & Professional Services,
546,CU Regent  District 02,"Rennison, Callie",Democratic,258.75,7/2/20 0:00,Ampersand Graphic Design,Boulder,CO,80303,Consultant & Professional Services,
554,CU Regent  District 02,"Rennison, Callie",Democratic,33.75,8/8/20 0:00,Ampersand Graphic Design,Boulder,CO,80303,Consultant & Professional Services,
564,CU Regent  District 02,"Rennison, Callie",Democratic,150.63,9/1/20 0:00,Ampersand Graphic Design,Boulder,CO,80303,Consultant & Professional Services,
572,CU Regent  District 02,"Rennison, Callie",Democratic,7.88,10/2/19 0:00,Premiere Members Credit Union,Boulder,CO,80303,Bank Fees,Bank Fees For Checks
575,CU Regent  District 02,"Rennison, Callie",Democratic,45.0,10/7/20 0:00,Ampersand Graphic Design,Boulder,CO,80303,Consultant & Professional Services,
577,CU Regent  District 02,"Rennison, Callie",Democratic,383.39,10/9/19 0:00,Ampersand Graphic Design,Boulder,CO,80303,Consultant & Professional Services,"Paid Mary Pettigrew For Palm Cards, Business Cards, Etc."
583,CU Regent  District 02,"Rennison, Callie",Democratic,1002.68,10/18/19 0:00,Ampersand Graphic Design,Boulder,CO,80303,Consultant & Professional Services,
591,CU Regent  District 02,"Rennison, Callie",Democratic,217.54,11/4/19 0:00,Ampersand Graphic Design,Boulder,CO,80303,Fundraising Expenses,
596,CU Regent  District 02,"Rennison, Callie",Democratic,33.75,11/20/20 0:00,Ampersand Graphic Design,Boulder,CO,80303,Consultant & Professional Services,
602,CU Regent  District 02,"Rennison, Callie",Democratic,33.75,12/15/19 0:00,Ampersand Graphic Design,Boulder,CO,80303,Consultant & Professional Services,
621,CU Regent District 02,"Gross, David",Democratic,100.0,9/12/19 0:00,Boulder County Democratic Party,Boulder,CO,80303,Advertising,Truman Dinner Ad
705,CU Regent District 02,"Gross, David",Democratic,200.0,6/15/20 0:00,Boulder County Democratic Party,Boulder,CO,80303,Advertising,Video
782,CU Regent District 02,"Harber, Aaron",Democratic,77.67,4/30/20 0:00,Boulder Valley School District,Boulder,CO,80303,Rent & Utilities,
479,CU Regent  District 02,"Rennison, Callie",Democratic,43.77,3/13/20 0:00,Lesley  Smith,Boulder,CO,80304,Fundraising Expenses,Reimbursement For Banner
488,CU Regent  District 02,"Rennison, Callie",Democratic,350.6,3/18/20 0:00,Lesley  Smith,Boulder,CO,80304,Fundraising Expenses,Reimburse Lesley S For Postage
448,CU Regent  District 02,"Rennison, Callie",Democratic,180.0,9/9/19 0:00,Boulder Packaging Center,Boulder,CO,80305,Other,Paid For Mail Box For Campaign
451,CU Regent  District 02,"Rennison, Callie",Democratic,43.53,9/21/19 0:00,Fed Ex Office Print And Business Center,Boulder,CO,80305,Consultant & Professional Services,Business Cards From Fed Ex Office
573,CU Regent  District 02,"Rennison, Callie",Democratic,80.0,10/4/19 0:00,Boulder Packaging Center,Boulder,CO,80305,Other,Stamps For Thank You Postcards
945,CU Regent District 06,"Murray, Richard",Republican,2675.1,3/3/20 0:00,University Of Colorado,Boulder,CO,80309,Other,5140 ∑ Event Food & Beverage
230,Bd. Ed. District 03,"Simpson, Mayling",Democratic,92.8,9/20/20 0:00,Jack  Dysart,Steamboat Springs,CO,80477-6149,Travel & Lodging,Travel Reimbursement - Delivered Yard Signs To Grand Junction
223,Bd. Ed. District 03,"Simpson, Mayling",Democratic,1082.04,9/10/20 0:00,Northwest Graphics,Steamboat Springs,CO,80487,Advertising,
225,Bd. Ed. District 03,"Simpson, Mayling",Democratic,33.55,9/14/20 0:00,Wallmart,Steamboat Springs,CO,80487,Office Equipment & Supplies,"Office Supplies (Paper, Tape, Boxes And Envelopes"
226,Bd. Ed. District 03,"Simpson, Mayling",Democratic,106.61,9/15/20 0:00,Ups Store,Steamboat Springs,CO,80487,Miscellaneous,Ups Shipment Of Campaign Materials
228,Bd. Ed. District 03,"Simpson, Mayling",Democratic,23.37,9/16/20 0:00,Ups Store,Steamboat Springs,CO,80487,Miscellaneous,Shipping Campaign Materials
229,Bd. Ed. District 03,"Simpson, Mayling",Democratic,31.37,9/18/20 0:00,Conoco,Steamboat Springs,CO,80487,Travel & Lodging,
232,Bd. Ed. District 03,"Simpson, Mayling",Democratic,24.11,9/20/20 0:00,Ups Store,Steamboat Springs,CO,80487,Miscellaneous,Ups Shipping Of Campaign Materials
236,Bd. Ed. District 03,"Simpson, Mayling",Democratic,200.0,9/28/20 0:00,Margaret  Smith,Steamboat Springs,CO,80487,Other,Refund Of Excess Donation Made On 9/24/20
243,Bd. Ed. District 03,"Simpson, Mayling",Democratic,28.08,10/5/20 0:00,Ups Store,Steamboat Springs,CO,80487,Miscellaneous,Ups Shipment Of Campaign Materials
284,Bd. Ed. District 03,"Simpson, Mayling",Democratic,99.0,11/5/20 0:00,U. S. Postmaster,Steamboat Springs,CO,80487,Miscellaneous,Postage For Letters And Thank-You Cards
279,Bd. Ed. District 03,"Simpson, Mayling",Democratic,190.0,10/30/20 0:00,"Grand Junction Media, Inc",Grand Junction,CO,80501,Advertising,
280,Bd. Ed. District 03,"Simpson, Mayling",Democratic,760.0,10/30/20 0:00,"Grand Junction Media, Inc",Grand Junction,CO,80501,Advertising,
778,CU Regent District 02,"Harber, Aaron",Democratic,200.0,3/20/20 0:00,Bunnie  Strassner,Erie,CO,80516,Consultant & Professional Services,
811,CU Regent District 02,"Murphy, Dick",Republican,225.0,7/27/20 0:00,Modern Media Management,Johnstown,CO,80534,Consultant & Professional Services,Web Site Help
288,Bd. Ed. District 03,"Rankin, Joyce",Republican,150.0,4/25/19 0:00,Sws Polifi,Fort Lupton,CO,80621,Consultant & Professional Services,
293,Bd. Ed. District 03,"Rankin, Joyce",Republican,150.0,7/27/19 0:00,Sws Polifi,Fort Lupton,CO,80621,Consultant & Professional Services,
299,Bd. Ed. District 03,"Rankin, Joyce",Republican,150.0,1/7/20 0:00,Sws Polifi Llc,Fort Lupton,CO,80621,Consultant & Professional Services,
305,Bd. Ed. District 03,"Rankin, Joyce",Republican,150.0,5/18/20 0:00,Sws Polifi Llc,Fort Lupton,CO,80621,Consultant & Professional Services,
307,Bd. Ed. District 03,"Rankin, Joyce",Republican,150.0,6/8/20 0:00,Sws Polifi Llc,Fort Lupton,CO,80621,Consultant & Professional Services,
308,Bd. Ed. District 03,"Rankin, Joyce",Republican,150.0,6/10/20 0:00,Sws Polifi,Fort Lupton,CO,80621,Consultant & Professional Services,
312,Bd. Ed. District 03,"Rankin, Joyce",Republican,150.0,7/1/20 0:00,Sws Polifi Llc,Fort Lupton,CO,80621,Consultant & Professional Services,
330,Bd. Ed. District 03,"Rankin, Joyce",Republican,391.0,10/8/20 0:00,Sws Polifi Llc,Fort Lupton,CO,80621,Consultant & Professional Services,
333,Bd. Ed. District 03,"Rankin, Joyce",Republican,150.0,10/28/19 0:00,Sws Polifi Llc,Fort Lupton,CO,80621,Consultant & Professional Services,
338,Bd. Ed. District 03,"Rankin, Joyce",Republican,541.0,11/13/20 0:00,Sws Polifi Llc,Fort Lupton,CO,80621,Consultant & Professional Services,
1056,CU Regent District 06,"Murray, Richard",Republican,639.1,11/18/20 0:00,Sws Polifi Llc,Fort Lupton,CO,80621,Consultant & Professional Services,
1060,CU Regent District 06,"Rahn, Priscilla",Republican,500.0,1/4/20 0:00,"Sws Polifi, Llc",Fort Lupton,CO,80621,Other,7410 ∑ General Consultants
1061,CU Regent District 06,"Rahn, Priscilla",Republican,150.0,1/4/20 0:00,"Sws Polifi, Llc",Fort Lupton,CO,80621,Other,7520 ∑ Accounting Fees
1062,CU Regent District 06,"Rahn, Priscilla",Republican,219.5,1/4/20 0:00,"Sws Polifi, Llc",Fort Lupton,CO,80621,Other,7430 ∑ Fundraising Consultants
1137,CU Regent District 06,"Rahn, Priscilla",Republican,264.4,5/7/20 0:00,"Sws Polifi, Llc",Fort Lupton,CO,80621,Other,7520 ∑ Accounting Fees
1151,CU Regent District 06,"Rahn, Priscilla",Republican,150.0,5/25/20 0:00,"Sws Polifi, Llc",Fort Lupton,CO,80621,Other,7520 ∑ Accounting Fees
1160,CU Regent District 06,"Rahn, Priscilla",Republican,150.0,6/3/20 0:00,"Sws Polifi, Llc",Fort Lupton,CO,80621,Other,7520 ∑ Accounting Fees
1168,CU Regent District 06,"Rahn, Priscilla",Republican,150.0,6/28/20 0:00,Sws Polifi Llc,Fort Lupton,CO,80621,Consultant & Professional Services,
1180,CU Regent District 06,"Rahn, Priscilla",Republican,121.8,12/10/19 0:00,Sbw Graphics,Fort Lupton,CO,80621,Other,6623 ∑ Banners
